{"text_format":"1","workbook":"xlsx","n_sheets":9,"sheets":["Deckblatt","Anleitung","Übertrag Vorgängerversion","Deandl","Buam","Jugendleiter","Erhebungsbogen","Förderantrag","Zusätzliche Auswertungen"],"not_rendered":{"charts":0,"images":15,"macros":1,"external_links":0,"defined_names":1,"comments":0,"pivot_tables":0},"unopened":[],"bounds":{"document_bytes":16777216,"sheet_cells":100000,"rows_first":2000,"rows_last":500,"rows_between":2000,"halvings":0,"cell_chars":16384,"cell_head_chars":4096},"cells_cut":0,"cells_raw":0,"read":"whole","date_system":"1900"}

{"sheet":"Deckblatt","index":0,"n_rows":201,"n_cols":2,"rows_kept":201,"cut":false,"hidden":false,"merged":[[0,0,0,1],[2,0,2,1],[3,0,3,1]]}
["Bayerische Trachtenjugend e. V."]
[]
["Kinder und Jugenderfassung"]
[{"$f":"(YEAR(TODAY()))","v":2019}]
["(Vereinsname eintragen)","(Vereinsort eintragen)"]
["Regierungsbezirk","Oberbayern"]
[]
["Kinder- und Jugenderfassung Version 1.20","Erstellt durch: Andal Huber ~ Rieden 4 ~ 82387 Antdorf"]
[]
[]
[]
[]
[]
[]
[]
[]
[]
[]
[]
[]
[]
[]
[]
[]
[]
[]
[]
[]
[]
[]
[]
[]
[]
[]
[]
[]
[]
[]
[]
[]
[]
[]
[]
[]
[]
[]
[]
[]
[]
[]
[]
[]
[]
[]
[]
[]
[]
[]
[]
[]
[]
[]
[]
[]
[]
[]
[]
[]
[]
[]
[]
[]
[]
[]
[]
[]
[]
[]
[]
[]
[]
[]
[]
[]
[]
[]
[]
[]
[]
[]
[]
[]
[]
[]
[]
[]
[]
[]
[]
[]
[]
[]
[]
[]
[]
[]
[]
[]
[]
[]
[]
[]
[]
[]
[]
[]
[]
[]
[]
[]
[]
[]
[]
[]
[]
[]
[]
[]
[]
[]
[]
[]
[]
[]
[]
[]
[]
[]
[]
[]
[]
[]
[]
[]
[]
[]
[]
[]
[]
[]
[]
[]
[]
[]
[]
[]
[]
[]
[]
[]
[]
[]
[]
[]
[]
[]
[]
[]
[]
[]
[]
[]
[]
[]
[]
[]
[]
[]
[]
[]
[]
[]
[]
[]
[]
[]
[]
[]
[]
[]
[]
[]
[]
[]
["Oberbayern"]
["Niederbayern"]
["Oberpfalz"]
["Oberfranken"]
["Mittelfranken"]
["Unterfranken"]
["Schwaben"]

{"sheet":"Anleitung","index":1,"n_rows":241,"n_cols":5,"rows_kept":241,"cut":false,"hidden":false,"merged":[[83,0,84,6],[88,0,89,6],[11,0,11,6],[31,0,32,6],[34,0,35,6],[37,0,37,6],[57,0,58,6],[225,0,225,6],[145,0,146,6],[174,0,176,6],[188,0,190,6],[187,0,187,6],[223,0,223,6]]}
["Anleitung zur Kinder- und Jugenderfassung"]
[]
["Die Kinder und Jugenderfassung soll euch Jugendleiter bei eurer Arbeit im Verein unterstützen."]
["So dient sie zum einen als Mitgliederverwaltung und soll euch zum anderen bei der jährlichen Antragstellung der Jugendförderung behilflich sein."]
[]
[]
[]
[]
[]
[]
["1. Deckblatt"]
["Die Jahreszahl wird automatisch für das ensprechende Jahr eingetragen.              "]
["Vereinsname (z.B. D´Waxnstoana) und Vereinsort (z.B. Antdorf) eintragen"]
["Regierungsbezik vom Vereinssitz auswählen"]
["Über die Schaltflächen gelangt man zu den entsprechenden Arbeitsmappen"]
[]
[]
[]
[]
[]
[]
[]
[]
["2. Deandl bzw. Buam"]
[]
[]
[]
[]
["2.1 Übersicht"]
["Die meisten Schaltflächen sind selbsterklärend."]
[]
["Bei drücken von \"Neis Deandl/Bua\" öffnet sich eine Maske zum Eintragen eines neuen Deandls/eines neuen Buam"]
[]
[]
["Drückt man auf \"Deandl/Bua ändern wird der Eintrag des Deandls/Buam geöffnet in dem der Cursor steht"]
[]
[]
["Bei Deandl/Bua löschen wird der Eintrag gelöscht in dem der Cursor steht"]
[]
[]
[]
["Speichern, Druckvorschau und Drucken dürften selbsterklärend sein."]
[]
[]
[]
[]
[]
[]
[]
["Die \"Zusätzlichen Anghaben I-III\" kann jeder Verein/Gauverband selbst bestimmen"]
["z.B. Zusätzliche Angaben I - \"Münchner Kind\" / Zusätzliche Angaben II -  Tracht vom Verein ausgeliehen / Zusätzliche Angaben III - Weitere Angaben"]
["In der Erfassung kann dies dann entsprechen ausgefüllt werden"]
[]
[]
[]
["2.2. Erfassungsmaske"]
[]
["Hier werden die persönlichen Angaben der Kinder und Jugendlichen eingetragen"]
[]
[]
["Hier können die verschiedenen Gruppen / Tätigkeiten / Aktivitäten "]
["der/des Jugendlichen ausgeählt werden."]
["Sobald eine Gruppe (z.B. Dreherin) ausgewählt wurde wird automatisch"]
["bei \"Jugendliche bis einschl. 26 Jahren\" ebenfalls ein Haken gesetzt."]
["Wird \"Jugendliche ist Passiv\" ausgewählt werden allle weiteren Haken gelöscht."]
[]
["Trifft keine der Gruppen / Tätigkeiten / Aktivitäten auf die/den Jugendlichen zu"]
["oder übt sie/er weitere/andere aus können diese als \"Sonstiges 1-3\" erfasst werden."]
["Dabei muss jedoch die Bezeichnung der sonstigen Tätigkeit mit eingetragen werden."]
[]
["Hier können freiwillige Angaben getätigt werden"]
["Legt ein Verein / Gau für eine Angabe in der Deandl bzw. Buam - Übersicht fest, "]
["so muss der Text genau definiert werden welcher in das Feld gschrieben werden soll."]
["z.B."]
["Zusätzliche Angeben I - Münchner Kind"]
["Wenn ja dann X wenn nein dann leer",null,null,null,"oder \"Ja\" und \"Nein\""]
[]
["Nur so kann eine genaue Auswertung im Bereich \"Zusätzliche Auswertungen\" erfolgen."]
[]
[]
[]
["2.3 Änderungsmaske"]
[]
["Die Änderungsmaske ist die selbe Maske wie die der Erfassung nur mit den bereits erfassten Daten des jeweiligen Kindes / Jugendlichen."]
[]
["Hier können nachträglich Aktivitäten  gelöscht bzw. hinzugefügt werden und die/den Jugendliche auf \"Passsiv\" setzen."]
["2.4 Deandl/Bua löschen"]
[]
["Deandl/Bua wird hiermit gelöscht (es gibt kein zurück) jedoch eine vorherige Sicherheitsabfrage."]
[]
[]
[]
[]
[]
[]
[]
[]
["3. Jugendleiter"]
[]
["3.1 Übersicht"]
[]
["Schaltflächen sind grundsätzlich die gleichen wie bei der Erfassung der Deandl bzw. Buam."]
[]
[]
[]
[]
[]
[]
["3.2 Erfassungsmaske"]
[]
["Hier werden die Daten der Jugendleiter erfasst. Neben den Angaben wie Name und Adressdaten werden hier auch die Aus- und Weiterbildungen sowie die JULEICA-Nummer erfasst."]
["Jugendleiter ohne JULEICA-Nummer werden nicht in den Erhebungsbogen bzw. Förderantrag übernommen!"]
["Unter Sonstiges können noch zusätzliche Angaben gemacht werden."]
[]
[]
[]
[]
[]
[]
[]
[]
[]
[]
[]
[]
[]
[]
[]
[]
[]
[]
[]
[]
[]
[]
[]
[]
[]
[]
[]
[]
[]
[]
["4. Mehrfachzählung / Jugenderhebungsbogen"]
[]
["Die in den Arbeitsmappen erfassten Daten der Kinder/Jugendlichen werden in diese Maske eingefügt"]
[]
[]
["Der Vereinsname, Sitz des Vereins sowie der Regierungsbezirk wird aus dem Deckblatt übernommen."]
[]
["Die Jugendleiter müssen selbst eingetragen werden."]
[]
[]
[]
[]
[]
[]
[]
[]
[]
[]
[]
[]
[]
[]
[]
[]
[]
[]
[]
[]
[]
[]
[]
["In dieser Maske muss noch die Anzahl der Mitarbeiter in der Jugendarbeit (z.B. Eltern, Vorplattler,…) einzutragen. Alle anderen Daten werden vom Programm selbstständig eingetragen."]
[]
[]
["Hier werden die qualifizierten Jugendleiter (ab 2018 nur mit JULEICA) aus der Jugendleitererfassung übernommen."]
[]
["Die maximal förderfähigen Jugendleiter werden  anhand der Richtlinien (je angefangene 10 Jugendliche ein förderfähiger Jugendleiter) berechnet"]
[]
["Sobald alle Kinder und Jugendlichen eingetragen und der Erhebungsbogeben fertig ausgefüllt ist, muss der Erhebungsbogen mit der Schaltfläche "]
["gespeichert werden. Dabei werden nur die Daten im Erhebungsbogen als Extra-Datei gespeichert."]
["Diese Datei müsst ihr dann eurem Gaujugendleiter per Email zukommen lassen."]
[]
[]
["5. Förderantrag"]
["Der Vereinsname wird aus dem Deckblatt übernommen. Der Rest muss selbst eingetragen werden."]
["In den Förderantrag werden die Daten aus dem Erhebungsbogen für die Pro-Kopf und die Jugendleiterförderung übernommen. "]
[]
[]
[]
[]
[]
[]
[]
[]
[]
[]
[]
[]
[]
[]
[]
[]
[]
[]
[]
[]
[]
[]
[]
[]
[]
[]
[]
[]
[]
[]
[]
[]
[]
[]
[]
[]
[" Bankverbindung eintragen ausdrucken unterschreiben und FERTIG!"]
[]
[]
[]
["6. Zusätzliche Auswertungen"]
[]
["Mit den \"Zusätzlichen Auswertungen\" können die Listen der Deandl und Buam nach gewissen Kriterien ausgewertet werden."]
["Dabei wird die ausgewählte Spalte nach den eingetragenen Suchkriterium durchsucht und die gesamte Anzahl ausgewiesen."]
["So kann z.B. die Anzahl der Kinder des gleichen Alters oder mit der gleichen Postleitzahl angezeigt werden"]
[]
["Weiterhin sind auch Auswertungen der \"Zusätzlichen Angaben\" wie z.B. \"Münchner Kind\" möglich"]
["Hierbei sit es wichtig, dass bei der Erfassung immer die gleiche Angabe eingetragen wurde"]
["z.B. Münchner Kind  Wenn ja dann \"X\""]
["so kann man in der Spalte \"Zusätzliche Angaben I\" als Suchkriterium \"X\" eintragen "]
["dann ermittelt das Programm die Anzahl der Kinder welche in dieser Spalte ein \"X\" eingetragen haben."]
["Dies funktioniert auch mit \"Ja\", \"Nein\" oder anderen Texten."]

{"sheet":"Übertrag Vorgängerversion","index":2,"n_rows":68,"n_cols":2,"rows_kept":68,"cut":false,"hidden":false,"merged":[]}
["Anleitung zum Übertragen der Daten aus Vorgängerversionen"]
[]
["Da es sich hier um eine Exceldatei handelt ist ein klassisches \"Update\" auf eine neuere Version"]
["mit Übernahme der alten Daten leider nicht möglich."]
[]
["Jedoch können die in alten Versionen erfassten Daten händisch in die neue Version eingefügt werden."]
["Dies ist auch ohne größere Excelkenntnisse möglich."]
["Weil aber in der aktuellen Version weitere Spalten eingefügt worden sind ist ein einfaches Kopieren und Einfügen "]
["nicht ohne weiteres möglich. Die Daten aus den alten Versionen müssen auf mehrere Schritte verteilt kopiert und eingefügt werden."]
[]
["Dabei ist folgendermaßen vorzugehen:"]
[]
["1. Deckblatt"]
[null," - Vereinsname,Ort und Regierungsbezirk müssen in der neuen Version nochmals händisch eingetragen werden"]
[]
["2. Deandl bzw. Buam"]
[null," - Öffen der \"Alten Version\" mit den bereits erfassten Daten"]
[null," - auf Deandl  gehen"]
[null," - alle erfassten Deandl markieren, dabei im 1. Schritt nur Spalte A (Nummer) bis Spalte H (PLZ Ort) markieren"]
[null," - Strg + C alternativ Rechtsklick und Kopieren drücken"]
[null," - in der neuen Version bei \"Deandl\" auf die Zelle \"A2\" klicken "]
[null," - Strg + V alternativ Rechtsklick und Einfügen"]
[null," "]
[null," - da in der Version 1.20. PLZ und Ort getrennt erfasst werden was in den Vorgängerversionen nicht der Fall war müssen diese "]
[null,"beiden Spalten leider händisch berichtigt werden. Dies kann direkt in der Spalte erfolgen und muss nicht zwingend über die "]
[null,"Änderungsmaske eingetragen werden"]
[]
[null," - zurück in die alte Version"]
[null," - wurde bereits eine Version 1.17 und höher verwendet,die Spalten I (JG) bis S (BA) markieren -> Strg + C"]
[null," - wurde eine Version 1.16 und niedriger verwendet, bitte nur die Spalten I (JG)  - bis R (MK) markieren Strg + C"]
[null," - wenn ihr nicht wisst welche Version ihr habt könnt ihr dies anhand der Gruppe \"Basteln\" erkennen"]
[null," ist diese Gruppe bereits mit dabei nutzt ihr die Version 1.17 und höher"]
[null," ist diese Gruppe nicht mit dabei nutzt ihr Version 1.16 und niedriger"]
[]
[null," - sind die entsprechenden Bereiche markiert und kopiert geht ihr in die Version 1.20 klickt auf das Feld \"J2\" und dann Strg + V"]
[]
[null," - nochmals zurück in die alte Version"]
[]
[null," Version 1.17 und höher"]
[null," - markieren der Spalten U (PA) und V (Eintrittsjahr) + Strg + C"]
[null," - sind die entsprechenden Bereiche markiert und kopiert geht ihr in die Version 1.20 klickt auf das Feld \"T2\" und dann Strg + V"]
[]
[null,"Version 1.16 und niedriger"]
[null," - markieren der Spalten T (PA) und U (Eintrittsjahr) + Strg + C"]
[null," - sind die entsprechenden Bereiche markiert und kopiert geht ihr in die Version 1.20 klickt auf das Feld \"T2\" und dann Strg + V"]
[]
[null," - wurden in den Spalten Sonstiges Eintragungen vorgenommen können diese ebenfalls noch in die neue Version kopiert werden"]
[]
[null," - nachdem alle Daten auf diesen Weg kopiert wurden in der neuen Version ein beliebiges Deandl bzw. beliebigen Buam auswählen "]
[null," und auf Deandl/Bua ändern. Die Änderungsmaske dann mit OK bestätigen."]
[null," - Dies ist nur jeweils mit einem Deandl/Buam notwendig"]
[]
[null," - anschließend können die Daten der Deandl und Buam ganz normal in der neuen Version bearbeitet werden"]
[null," und die neuen Gruppen eingetragen werden"]
[]
["3. Jugendleiter"]
[null," - die Daten der Jugendleiter in der alten Version markieren Strg + C"]
[null," - in der neuen Version unter Jugendleiter in die Zelle A2 klicken Strg + V"]
[null," - im Anschluss muss JEDER Jugendleiter noch einmal mit \"Jugendleiter ändern\" bestätigt werden"]
[null," nur so kann garantiert werden, dass dieser als förderfähig aufgeführt wird"]
[]
["4. Erhebungsbogen + Förderantrag"]
[null," - die Daten in der alten Version entweder kopieren Strg + C und in der neuen Version entsprechend einfügen Strg + V"]
[null," oder händisch nochmals eintragen"]
[]
["5. Überpüfung der Daten"]
[null," - sobald alle Daten kopiert wurden bitte den Erhebungsbogen sowie den Förderantrag mit der alten Version überprüfen ob die"]
[null," Zahlen gleich sind."]

{"sheet":"Deandl","index":3,"n_rows":991,"n_cols":31,"rows_kept":991,"cut":false,"hidden":false,"merged":[[0,22,0,23],[0,24,0,25],[0,26,0,27]]}
["Nr.","Name","Vorname","Geburtstag",{"$f":"TODAY()","v":"2019-10-07"},"Telefon","Straße","PLZ","Ort","JG","PG","VT","SG","VM","BS","SG","MU","TH","MK","BA","PA","Eintrittsjahr",null,null,null,null,null,null,"(Bezeichnung eintragen)","(Bezeichnung eintragen)","(Bezeichnung eintragen)"]
[null,null,null,null,{"$f":"IF(D2=\"\",\"\",DATEDIF(D2,$E$1,\"Y\"))","v":""}]
[null,null,null,null,""]
[null,null,null,null,""]
[null,null,null,null,""]
[null,null,null,null,""]
[null,null,null,null,""]
[null,null,null,null,""]
[null,null,null,null,""]
[null,null,null,null,""]
[null,null,null,null,""]
[null,null,null,null,""]
[null,null,null,null,""]
[null,null,null,null,""]
[null,null,null,null,""]
[null,null,null,null,""]
[null,null,null,null,""]
[null,null,null,null,""]
[null,null,null,null,""]
[null,null,null,null,""]
[null,null,null,null,""]
[null,null,null,null,""]
[null,null,null,null,""]
[null,null,null,null,""]
[null,null,null,null,""]
[null,null,null,null,""]
[null,null,null,null,""]
[null,null,null,null,""]
[null,null,null,null,""]
[null,null,null,null,""]
[null,null,null,null,""]
[null,null,null,null,""]
[null,null,null,null,""]
[null,null,null,null,""]
[null,null,null,null,""]
[null,null,null,null,""]
[null,null,null,null,""]
[null,null,null,null,""]
[null,null,null,null,""]
[null,null,null,null,""]
[null,null,null,null,""]
[null,null,null,null,""]
[null,null,null,null,""]
[null,null,null,null,""]
[null,null,null,null,""]
[null,null,null,null,""]
[null,null,null,null,""]
[null,null,null,null,""]
[null,null,null,null,""]
[null,null,null,null,""]
[null,null,null,null,""]
[null,null,null,null,""]
[null,null,null,null,""]
[null,null,null,null,""]
[null,null,null,null,""]
[null,null,null,null,""]
[null,null,null,null,""]
[null,null,null,null,""]
[null,null,null,null,""]
[null,null,null,null,""]
[null,null,null,null,""]
[null,null,null,null,""]
[null,null,null,null,""]
[null,null,null,null,""]
[null,null,null,null,""]
[null,null,null,null,{"$f":"IF(D66=\"\",\"\",DATEDIF(D66,$E$1,\"Y\"))","v":""}]
[null,null,null,null,""]
[null,null,null,null,""]
[null,null,null,null,""]
[null,null,null,null,""]
[null,null,null,null,""]
[null,null,null,null,""]
[null,null,null,null,""]
[null,null,null,null,""]
[null,null,null,null,""]
[null,null,null,null,""]
[null,null,null,null,""]
[null,null,null,null,""]
[null,null,null,null,""]
[null,null,null,null,""]
[null,null,null,null,""]
[null,null,null,null,""]
[null,null,null,null,""]
[null,null,null,null,""]
[null,null,null,null,""]
[null,null,null,null,""]
[null,null,null,null,""]
[null,null,null,null,""]
[null,null,null,null,""]
[null,null,null,null,""]
[null,null,null,null,""]
[null,null,null,null,""]
[null,null,null,null,""]
[null,null,null,null,""]
[null,null,null,null,""]
[null,null,null,null,""]
[null,null,null,null,""]
[null,null,null,null,""]
[null,null,null,null,""]
[null,null,null,null,""]
[null,null,null,null,""]
[null,null,null,null,""]
[null,null,null,null,""]
[null,null,null,null,""]
[null,null,null,null,""]
[null,null,null,null,""]
[null,null,null,null,""]
[null,null,null,null,""]
[null,null,null,null,""]
[null,null,null,null,""]
[null,null,null,null,""]
[null,null,null,null,""]
[null,null,null,null,""]
[null,null,null,null,""]
[null,null,null,null,""]
[null,null,null,null,""]
[null,null,null,null,""]
[null,null,null,null,""]
[null,null,null,null,""]
[null,null,null,null,""]
[null,null,null,null,""]
[null,null,null,null,""]
[null,null,null,null,""]
[null,null,null,null,""]
[null,null,null,null,""]
[null,null,null,null,""]
[null,null,null,null,""]
[null,null,null,null,""]
[null,null,null,null,""]
[null,null,null,null,{"$f":"IF(D130=\"\",\"\",DATEDIF(D130,$E$1,\"Y\"))","v":""}]
[null,null,null,null,""]
[null,null,null,null,""]
[null,null,null,null,""]
[null,null,null,null,""]
[null,null,null,null,""]
[null,null,null,null,""]
[null,null,null,null,""]
[null,null,null,null,""]
[null,null,null,null,""]
[null,null,null,null,""]
[null,null,null,null,""]
[null,null,null,null,""]
[null,null,null,null,""]
[null,null,null,null,""]
[null,null,null,null,""]
[null,null,null,null,""]
[null,null,null,null,""]
[null,null,null,null,""]
[null,null,null,null,""]
[null,null,null,null,""]
[null,null,null,null,""]
[null,null,null,null,""]
[null,null,null,null,""]
[null,null,null,null,""]
[null,null,null,null,""]
[null,null,null,null,""]
[null,null,null,null,""]
[null,null,null,null,""]
[null,null,null,null,""]
[null,null,null,null,""]
[null,null,null,null,""]
[null,null,null,null,""]
[null,null,null,null,""]
[null,null,null,null,""]
[null,null,null,null,""]
[null,null,null,null,""]
[null,null,null,null,""]
[null,null,null,null,""]
[null,null,null,null,""]
[null,null,null,null,""]
[null,null,null,null,""]
[null,null,null,null,""]
[null,null,null,null,""]
[null,null,null,null,""]
[null,null,null,null,""]
[null,null,null,null,""]
[null,null,null,null,""]
[null,null,null,null,""]
[null,null,null,null,""]
[null,null,null,null,""]
[null,null,null,null,""]
[null,null,null,null,""]
[null,null,null,null,""]
[null,null,null,null,""]
[null,null,null,null,""]
[null,null,null,null,""]
[null,null,null,null,""]
[null,null,null,null,""]
[null,null,null,null,""]
[null,null,null,null,""]
[null,null,null,null,""]
[null,null,null,null,""]
[null,null,null,null,""]
[null,null,null,null,{"$f":"IF(D194=\"\",\"\",DATEDIF(D194,$E$1,\"Y\"))","v":""}]
[null,null,null,null,""]
[null,null,null,null,""]
[null,null,null,null,""]
[null,null,null,null,""]
[null,null,null,null,""]
[null,null,null,null,""]
[null,null,null,null,""]
[null,null,null,null,""]
[null,null,null,null,""]
[null,null,null,null,""]
[null,null,null,null,""]
[null,null,null,null,""]
[null,null,null,null,""]
[null,null,null,null,""]
[null,null,null,null,""]
[null,null,null,null,""]
[null,null,null,null,""]
[null,null,null,null,""]
[null,null,null,null,""]
[null,null,null,null,""]
[null,null,null,null,""]
[null,null,null,null,""]
[null,null,null,null,""]
[null,null,null,null,""]
[null,null,null,null,""]
[null,null,null,null,""]
[null,null,null,null,""]
[null,null,null,null,""]
[null,null,null,null,""]
[null,null,null,null,""]
[null,null,null,null,""]
[null,null,null,null,""]
[null,null,null,null,""]
[null,null,null,null,""]
[null,null,null,null,""]
[null,null,null,null,""]
[null,null,null,null,""]
[null,null,null,null,""]
[null,null,null,null,""]
[null,null,null,null,""]
[null,null,null,null,""]
[null,null,null,null,""]
[null,null,null,null,""]
[null,null,null,null,""]
[null,null,null,null,""]
[null,null,null,null,""]
[null,null,null,null,""]
[null,null,null,null,""]
[null,null,null,null,""]
[null,null,null,null,""]
[null,null,null,null,""]
[null,null,null,null,""]
[null,null,null,null,""]
[null,null,null,null,""]
[null,null,null,null,""]
[null,null,null,null,""]
[null,null,null,null,""]
[null,null,null,null,""]
[null,null,null,null,""]
[null,null,null,null,""]
[null,null,null,null,""]
[null,null,null,null,""]
[null,null,null,null,""]
[null,null,null,null,{"$f":"IF(D258=\"\",\"\",DATEDIF(D258,$E$1,\"Y\"))","v":""}]
[null,null,null,null,""]
[null,null,null,null,""]
[null,null,null,null,""]
[null,null,null,null,""]
[null,null,null,null,""]
[null,null,null,null,""]
[null,null,null,null,""]
[null,null,null,null,""]
[null,null,null,null,""]
[null,null,null,null,""]
[null,null,null,null,""]
[null,null,null,null,""]
[null,null,null,null,""]
[null,null,null,null,""]
[null,null,null,null,""]
[null,null,null,null,""]
[null,null,null,null,""]
[null,null,null,null,""]
[null,null,null,null,""]
[null,null,null,null,""]
[null,null,null,null,""]
[null,null,null,null,""]
[null,null,null,null,""]
[null,null,null,null,""]
[null,null,null,null,""]
[null,null,null,null,""]
[null,null,null,null,""]
[null,null,null,null,""]
[null,null,null,null,""]
[null,null,null,null,""]
[null,null,null,null,""]
[null,null,null,null,""]
[null,null,null,null,""]
[null,null,null,null,""]
[null,null,null,null,""]
[null,null,null,null,""]
[null,null,null,null,""]
[null,null,null,null,""]
[null,null,null,null,""]
[null,null,null,null,""]
[null,null,null,null,""]
[null,null,null,null,""]
[null,null,null,null,""]
[null,null,null,null,""]
[null,null,null,null,""]
[null,null,null,null,""]
[null,null,null,null,""]
[null,null,null,null,""]
[null,null,null,null,""]
[null,null,null,null,""]
[null,null,null,null,""]
[null,null,null,null,""]
[null,null,null,null,""]
[null,null,null,null,""]
[null,null,null,null,""]
[null,null,null,null,""]
[null,null,null,null,""]
[null,null,null,null,""]
[null,null,null,null,""]
[null,null,null,null,""]
[null,null,null,null,""]
[null,null,null,null,""]
[null,null,null,null,""]
[null,null,null,null,{"$f":"IF(D322=\"\",\"\",DATEDIF(D322,$E$1,\"Y\"))","v":""}]
[null,null,null,null,""]
[null,null,null,null,""]
[null,null,null,null,""]
[null,null,null,null,""]
[null,null,null,null,""]
[null,null,null,null,""]
[null,null,null,null,""]
[null,null,null,null,""]
[null,null,null,null,""]
[null,null,null,null,""]
[null,null,null,null,""]
[null,null,null,null,""]
[null,null,null,null,""]
[null,null,null,null,""]
[null,null,null,null,""]
[null,null,null,null,""]
[null,null,null,null,""]
[null,null,null,null,""]
[null,null,null,null,""]
[null,null,null,null,""]
[null,null,null,null,""]
[null,null,null,null,""]
[null,null,null,null,""]
[null,null,null,null,""]
[null,null,null,null,""]
[null,null,null,null,""]
[null,null,null,null,""]
[null,null,null,null,""]
[null,null,null,null,""]
[null,null,null,null,""]
[null,null,null,null,""]
[null,null,null,null,""]
[null,null,null,null,""]
[null,null,null,null,""]
[null,null,null,null,""]
[null,null,null,null,""]
[null,null,null,null,""]
[null,null,null,null,""]
[null,null,null,null,""]
[null,null,null,null,""]
[null,null,null,null,""]
[null,null,null,null,""]
[null,null,null,null,""]
[null,null,null,null,""]
[null,null,null,null,""]
[null,null,null,null,""]
[null,null,null,null,""]
[null,null,null,null,""]
[null,null,null,null,""]
[null,null,null,null,""]
[null,null,null,null,""]
[null,null,null,null,""]
[null,null,null,null,""]
[null,null,null,null,""]
[null,null,null,null,""]
[null,null,null,null,""]
[null,null,null,null,""]
[null,null,null,null,""]
[null,null,null,null,""]
[null,null,null,null,""]
[null,null,null,null,""]
[null,null,null,null,""]
[null,null,null,null,""]
[null,null,null,null,{"$f":"IF(D386=\"\",\"\",DATEDIF(D386,$E$1,\"Y\"))","v":""}]
[null,null,null,null,""]
[null,null,null,null,""]
[null,null,null,null,""]
[null,null,null,null,""]
[null,null,null,null,""]
[null,null,null,null,""]
[null,null,null,null,""]
[null,null,null,null,""]
[null,null,null,null,""]
[null,null,null,null,""]
[null,null,null,null,""]
[null,null,null,null,""]
[null,null,null,null,""]
[null,null,null,null,""]
[null,null,null,null,""]
[null,null,null,null,""]
[null,null,null,null,""]
[null,null,null,null,""]
[null,null,null,null,""]
[null,null,null,null,""]
[null,null,null,null,""]
[null,null,null,null,""]
[null,null,null,null,""]
[null,null,null,null,""]
[null,null,null,null,""]
[null,null,null,null,""]
[null,null,null,null,""]
[null,null,null,null,""]
[null,null,null,null,""]
[null,null,null,null,""]
[null,null,null,null,""]
[null,null,null,null,""]
[null,null,null,null,""]
[null,null,null,null,""]
[null,null,null,null,""]
[null,null,null,null,""]
[null,null,null,null,""]
[null,null,null,null,""]
[null,null,null,null,""]
[null,null,null,null,""]
[null,null,null,null,""]
[null,null,null,null,""]
[null,null,null,null,""]
[null,null,null,null,""]
[null,null,null,null,""]
[null,null,null,null,""]
[null,null,null,null,""]
[null,null,null,null,""]
[null,null,null,null,""]
[null,null,null,null,""]
[null,null,null,null,""]
[null,null,null,null,""]
[null,null,null,null,""]
[null,null,null,null,""]
[null,null,null,null,""]
[null,null,null,null,""]
[null,null,null,null,""]
[null,null,null,null,""]
[null,null,null,null,""]
[null,null,null,null,""]
[null,null,null,null,""]
[null,null,null,null,""]
[null,null,null,null,""]
[null,null,null,null,{"$f":"IF(D450=\"\",\"\",DATEDIF(D450,$E$1,\"Y\"))","v":""}]
[null,null,null,null,""]
[null,null,null,null,""]
[null,null,null,null,""]
[null,null,null,null,""]
[null,null,null,null,""]
[null,null,null,null,""]
[null,null,null,null,""]
[null,null,null,null,""]
[null,null,null,null,""]
[null,null,null,null,""]
[null,null,null,null,""]
[null,null,null,null,""]
[null,null,null,null,""]
[null,null,null,null,""]
[null,null,null,null,""]
[null,null,null,null,""]
[null,null,null,null,""]
[null,null,null,null,""]
[null,null,null,null,""]
[null,null,null,null,""]
[null,null,null,null,""]
[null,null,null,null,""]
[null,null,null,null,""]
[null,null,null,null,""]
[null,null,null,null,""]
[null,null,null,null,""]
[null,null,null,null,""]
[null,null,null,null,""]
[null,null,null,null,""]
[null,null,null,null,""]
[null,null,null,null,""]
[null,null,null,null,""]
[null,null,null,null,""]
[null,null,null,null,""]
[null,null,null,null,""]
[null,null,null,null,""]
[null,null,null,null,""]
[null,null,null,null,""]
[null,null,null,null,""]
[null,null,null,null,""]
[null,null,null,null,""]
[null,null,null,null,""]
[null,null,null,null,""]
[null,null,null,null,""]
[null,null,null,null,""]
[null,null,null,null,""]
[null,null,null,null,""]
[null,null,null,null,""]
[null,null,null,null,""]
[null,null,null,null,""]
[null,null,null,null,""]
[null,null,null,null,""]
[null,null,null,null,""]
[null,null,null,null,""]
[null,null,null,null,""]
[null,null,null,null,""]
[null,null,null,null,""]
[null,null,null,null,""]
[null,null,null,null,""]
[null,null,null,null,""]
[null,null,null,null,""]
[null,null,null,null,""]
[null,null,null,null,""]
[null,null,null,null,{"$f":"IF(D514=\"\",\"\",DATEDIF(D514,$E$1,\"Y\"))","v":""}]
[null,null,null,null,""]
[null,null,null,null,""]
[null,null,null,null,""]
[null,null,null,null,""]
[null,null,null,null,""]
[null,null,null,null,""]
[null,null,null,null,""]
[null,null,null,null,""]
[null,null,null,null,""]
[null,null,null,null,""]
[null,null,null,null,""]
[null,null,null,null,""]
[null,null,null,null,""]
[null,null,null,null,""]
[null,null,null,null,""]
[null,null,null,null,""]
[null,null,null,null,""]
[null,null,null,null,""]
[null,null,null,null,""]
[null,null,null,null,""]
[null,null,null,null,""]
[null,null,null,null,""]
[null,null,null,null,""]
[null,null,null,null,""]
[null,null,null,null,""]
[null,null,null,null,""]
[null,null,null,null,""]
[null,null,null,null,""]
[null,null,null,null,""]
[null,null,null,null,""]
[null,null,null,null,""]
[null,null,null,null,""]
[null,null,null,null,""]
[null,null,null,null,""]
[null,null,null,null,""]
[null,null,null,null,""]
[null,null,null,null,""]
[null,null,null,null,""]
[null,null,null,null,""]
[null,null,null,null,""]
[null,null,null,null,""]
[null,null,null,null,""]
[null,null,null,null,""]
[null,null,null,null,""]
[null,null,null,null,""]
[null,null,null,null,""]
[null,null,null,null,""]
[null,null,null,null,""]
[null,null,null,null,""]
[null,null,null,null,""]
[null,null,null,null,""]
[null,null,null,null,""]
[null,null,null,null,""]
[null,null,null,null,""]
[null,null,null,null,""]
[null,null,null,null,""]
[null,null,null,null,""]
[null,null,null,null,""]
[null,null,null,null,""]
[null,null,null,null,""]
[null,null,null,null,""]
[null,null,null,null,""]
[null,null,null,null,""]
[null,null,null,null,{"$f":"IF(D578=\"\",\"\",DATEDIF(D578,$E$1,\"Y\"))","v":""}]
[null,null,null,null,""]
[null,null,null,null,""]
[null,null,null,null,""]
[null,null,null,null,""]
[null,null,null,null,""]
[null,null,null,null,""]
[null,null,null,null,""]
[null,null,null,null,""]
[null,null,null,null,""]
[null,null,null,null,""]
[null,null,null,null,""]
[null,null,null,null,""]
[null,null,null,null,""]
[null,null,null,null,""]
[null,null,null,null,""]
[null,null,null,null,""]
[null,null,null,null,""]
[null,null,null,null,""]
[null,null,null,null,""]
[null,null,null,null,""]
[null,null,null,null,""]
[null,null,null,null,""]
[null,null,null,null,""]
[null,null,null,null,""]
[null,null,null,null,""]
[null,null,null,null,""]
[null,null,null,null,""]
[null,null,null,null,""]
[null,null,null,null,""]
[null,null,null,null,""]
[null,null,null,null,""]
[null,null,null,null,""]
[null,null,null,null,""]
[null,null,null,null,""]
[null,null,null,null,""]
[null,null,null,null,""]
[null,null,null,null,""]
[null,null,null,null,""]
[null,null,null,null,""]
[null,null,null,null,""]
[null,null,null,null,""]
[null,null,null,null,""]
[null,null,null,null,""]
[null,null,null,null,""]
[null,null,null,null,""]
[null,null,null,null,""]
[null,null,null,null,""]
[null,null,null,null,""]
[null,null,null,null,""]
[null,null,null,null,""]
[null,null,null,null,""]
[null,null,null,null,""]
[null,null,null,null,""]
[null,null,null,null,""]
[null,null,null,null,""]
[null,null,null,null,""]
[null,null,null,null,""]
[null,null,null,null,""]
[null,null,null,null,""]
[null,null,null,null,""]
[null,null,null,null,""]
[null,null,null,null,""]
[null,null,null,null,""]
[null,null,null,null,{"$f":"IF(D642=\"\",\"\",DATEDIF(D642,$E$1,\"Y\"))","v":""}]
[null,null,null,null,""]
[null,null,null,null,""]
[null,null,null,null,""]
[null,null,null,null,""]
[null,null,null,null,""]
[null,null,null,null,""]
[null,null,null,null,""]
[null,null,null,null,""]
[null,null,null,null,""]
[null,null,null,null,""]
[null,null,null,null,""]
[null,null,null,null,""]
[null,null,null,null,""]
[null,null,null,null,""]
[null,null,null,null,""]
[null,null,null,null,""]
[null,null,null,null,""]
[null,null,null,null,""]
[null,null,null,null,""]
[null,null,null,null,""]
[null,null,null,null,""]
[null,null,null,null,""]
[null,null,null,null,""]
[null,null,null,null,""]
[null,null,null,null,""]
[null,null,null,null,""]
[null,null,null,null,""]
[null,null,null,null,""]
[null,null,null,null,""]
[null,null,null,null,""]
[null,null,null,null,""]
[null,null,null,null,""]
[null,null,null,null,""]
[null,null,null,null,""]
[null,null,null,null,""]
[null,null,null,null,""]
[null,null,null,null,""]
[null,null,null,null,""]
[null,null,null,null,""]
[null,null,null,null,""]
[null,null,null,null,""]
[null,null,null,null,""]
[null,null,null,null,""]
[null,null,null,null,""]
[null,null,null,null,""]
[null,null,null,null,""]
[null,null,null,null,""]
[null,null,null,null,""]
[null,null,null,null,""]
[null,null,null,null,""]
[null,null,null,null,""]
[null,null,null,null,""]
[null,null,null,null,""]
[null,null,null,null,""]
[null,null,null,null,""]
[null,null,null,null,""]
[null,null,null,null,""]
[null,null,null,null,""]
[null,null,null,null,""]
[null,null,null,null,""]
[null,null,null,null,""]
[null,null,null,null,""]
[null,null,null,null,""]
[null,null,null,null,{"$f":"IF(D706=\"\",\"\",DATEDIF(D706,$E$1,\"Y\"))","v":""}]
[null,null,null,null,""]
[null,null,null,null,""]
[null,null,null,null,""]
[null,null,null,null,""]
[null,null,null,null,""]
[null,null,null,null,""]
[null,null,null,null,""]
[null,null,null,null,""]
[null,null,null,null,""]
[null,null,null,null,""]
[null,null,null,null,""]
[null,null,null,null,""]
[null,null,null,null,""]
[null,null,null,null,""]
[null,null,null,null,""]
[null,null,null,null,""]
[null,null,null,null,""]
[null,null,null,null,""]
[null,null,null,null,""]
[null,null,null,null,""]
[null,null,null,null,""]
[null,null,null,null,""]
[null,null,null,null,""]
[null,null,null,null,""]
[null,null,null,null,""]
[null,null,null,null,""]
[null,null,null,null,""]
[null,null,null,null,""]
[null,null,null,null,""]
[null,null,null,null,""]
[null,null,null,null,""]
[null,null,null,null,""]
[null,null,null,null,""]
[null,null,null,null,""]
[null,null,null,null,""]
[null,null,null,null,""]
[null,null,null,null,""]
[null,null,null,null,""]
[null,null,null,null,""]
[null,null,null,null,""]
[null,null,null,null,""]
[null,null,null,null,""]
[null,null,null,null,""]
[null,null,null,null,""]
[null,null,null,null,""]
[null,null,null,null,""]
[null,null,null,null,""]
[null,null,null,null,""]
[null,null,null,null,""]
[null,null,null,null,""]
[null,null,null,null,""]
[null,null,null,null,""]
[null,null,null,null,""]
[null,null,null,null,""]
[null,null,null,null,""]
[null,null,null,null,""]
[null,null,null,null,""]
[null,null,null,null,""]
[null,null,null,null,""]
[null,null,null,null,""]
[null,null,null,null,""]
[null,null,null,null,""]
[null,null,null,null,""]
[null,null,null,null,{"$f":"IF(D770=\"\",\"\",DATEDIF(D770,$E$1,\"Y\"))","v":""}]
[null,null,null,null,""]
[null,null,null,null,""]
[null,null,null,null,""]
[null,null,null,null,""]
[null,null,null,null,""]
[null,null,null,null,""]
[null,null,null,null,""]
[null,null,null,null,""]
[null,null,null,null,""]
[null,null,null,null,""]
[null,null,null,null,""]
[null,null,null,null,""]
[null,null,null,null,""]
[null,null,null,null,""]
[null,null,null,null,""]
[null,null,null,null,""]
[null,null,null,null,""]
[null,null,null,null,""]
[null,null,null,null,""]
[null,null,null,null,""]
[null,null,null,null,""]
[null,null,null,null,""]
[null,null,null,null,""]
[null,null,null,null,""]
[null,null,null,null,""]
[null,null,null,null,""]
[null,null,null,null,""]
[null,null,null,null,""]
[null,null,null,null,""]
[null,null,null,null,""]
[null,null,null,null,""]
[null,null,null,null,""]
[null,null,null,null,""]
[null,null,null,null,""]
[null,null,null,null,""]
[null,null,null,null,""]
[null,null,null,null,""]
[null,null,null,null,""]
[null,null,null,null,""]
[null,null,null,null,""]
[null,null,null,null,""]
[null,null,null,null,""]
[null,null,null,null,""]
[null,null,null,null,""]
[null,null,null,null,""]
[null,null,null,null,""]
[null,null,null,null,""]
[null,null,null,null,""]
[null,null,null,null,""]
[null,null,null,null,""]
[null,null,null,null,""]
[null,null,null,null,""]
[null,null,null,null,""]
[null,null,null,null,""]
[null,null,null,null,""]
[null,null,null,null,""]
[null,null,null,null,""]
[null,null,null,null,""]
[null,null,null,null,""]
[null,null,null,null,""]
[null,null,null,null,""]
[null,null,null,null,""]
[null,null,null,null,""]
[null,null,null,null,{"$f":"IF(D834=\"\",\"\",DATEDIF(D834,$E$1,\"Y\"))","v":""}]
[null,null,null,null,""]
[null,null,null,null,""]
[null,null,null,null,""]
[null,null,null,null,""]
[null,null,null,null,""]
[null,null,null,null,""]
[null,null,null,null,""]
[null,null,null,null,""]
[null,null,null,null,""]
[null,null,null,null,""]
[null,null,null,null,""]
[null,null,null,null,""]
[null,null,null,null,""]
[null,null,null,null,""]
[null,null,null,null,""]
[null,null,null,null,""]
[null,null,null,null,""]
[null,null,null,null,""]
[null,null,null,null,""]
[null,null,null,null,""]
[null,null,null,null,""]
[null,null,null,null,""]
[null,null,null,null,""]
[null,null,null,null,""]
[null,null,null,null,""]
[null,null,null,null,""]
[null,null,null,null,""]
[null,null,null,null,""]
[null,null,null,null,""]
[null,null,null,null,""]
[{"$f":"ROW()-1","v":864},"Fichtner","Maria","26.008.1992",{"$error":"#NUM!"},"","Im Seefeld ",null,"82387 Antdorf","x",null,"x","x","x",null,null,null,null,null,null,null,"2016","Firstlady","","",""]
[{"$f":"ROW()-1","v":865},"","","01.01.1991",null,"","",null,"","x","x","x","x","x",null,null,null,null,null,"x",null,"","","","",""]
[]
[]
[]
[]
[]
[]
[]
[]
[]
[]
[]
[]
[]
[]
[]
[]
[]
[]
[]
[]
[]
[]
[]
[]
[]
[]
[]
[]
[]
[]
[]
[]
[]
[]
[]
[]
[]
[]
[]
[]
[]
[]
[]
[]
[]
[]
[]
[]
[]
[]
[]
[]
[]
[]
[]
[]
[]
[]
[]
[]
[]
[]
[]
[]
[]
[]
[]
[]
[]
[]
[]
[]
[]
[]
[]
[]
[]
[]
[]
[]
[]
[]
[]
[]
[]
[]
[]
[]
[]
[]
[]
[]
[]
[]
[]
[]
[]
[]
[]
[]
[]
[]
[]
[]
[]
[]
[]
[]
[]
[]
[]
[]
[]
[]
[]
[]
[]
[]
[]
[]
[]
[]
[]
[]
[null,null,null,null,null,null,null,null,null,null,null,null,null,null,null,null,null,null,null,null,null,null,null,null,null,null,""]

{"sheet":"Buam","index":4,"n_rows":1047,"n_cols":37,"rows_kept":1047,"cut":false,"hidden":false,"merged":[[0,22,0,23],[0,24,0,25],[0,26,0,27]]}
["Nr.","Name","Vorname","Geburtstag",{"$f":"TODAY()","v":"2019-10-07"},"Telefon","Straße","PLZ","Ort","JG","PG","VT","SG","VM","BS","SG","MU","TH","MK","BA","PA","Eintrittsjahr",null,null,null,null,null,null,"(Bezeichnung eintragen)","(Bezeichnung eintragen)","(Bezeichnung eintragen)"]
[null,null,null,null,{"$f":"IF(D2=\"\",\"\",DATEDIF(D2,$E$1,\"Y\"))","v":""}]
[null,null,null,null,""]
[null,null,null,null,""]
[null,null,null,null,""]
[null,null,null,null,""]
[null,null,null,null,""]
[null,null,null,null,""]
[null,null,null,null,""]
[null,null,null,null,""]
[null,null,null,null,""]
[null,null,null,null,""]
[null,null,null,null,""]
[null,null,null,null,""]
[null,null,null,null,""]
[null,null,null,null,""]
[null,null,null,null,""]
[null,null,null,null,""]
[null,null,null,null,""]
[null,null,null,null,""]
[null,null,null,null,""]
[null,null,null,null,""]
[null,null,null,null,""]
[null,null,null,null,""]
[null,null,null,null,""]
[null,null,null,null,""]
[null,null,null,null,""]
[null,null,null,null,""]
[null,null,null,null,""]
[null,null,null,null,""]
[null,null,null,null,""]
[null,null,null,null,""]
[null,null,null,null,""]
[null,null,null,null,""]
[null,null,null,null,""]
[null,null,null,null,""]
[null,null,null,null,""]
[null,null,null,null,""]
[null,null,null,null,""]
[null,null,null,null,""]
[null,null,null,null,""]
[null,null,null,null,""]
[null,null,null,null,""]
[null,null,null,null,""]
[null,null,null,null,""]
[null,null,null,null,""]
[null,null,null,null,""]
[null,null,null,null,""]
[null,null,null,null,""]
[null,null,null,null,""]
[null,null,null,null,""]
[null,null,null,null,""]
[null,null,null,null,""]
[null,null,null,null,""]
[null,null,null,null,""]
[null,null,null,null,""]
[null,null,null,null,""]
[null,null,null,null,""]
[null,null,null,null,""]
[null,null,null,null,""]
[null,null,null,null,""]
[null,null,null,null,""]
[null,null,null,null,""]
[null,null,null,null,""]
[null,null,null,null,""]
[null,null,null,null,{"$f":"IF(D66=\"\",\"\",DATEDIF(D66,$E$1,\"Y\"))","v":""}]
[null,null,null,null,""]
[null,null,null,null,""]
[null,null,null,null,""]
[null,null,null,null,""]
[null,null,null,null,""]
[null,null,null,null,""]
[null,null,null,null,""]
[null,null,null,null,""]
[null,null,null,null,""]
[null,null,null,null,""]
[null,null,null,null,""]
[null,null,null,null,""]
[null,null,null,null,""]
[null,null,null,null,""]
[null,null,null,null,""]
[null,null,null,null,""]
[null,null,null,null,""]
[null,null,null,null,""]
[null,null,null,null,""]
[null,null,null,null,""]
[null,null,null,null,""]
[null,null,null,null,""]
[null,null,null,null,""]
[null,null,null,null,""]
[null,null,null,null,""]
[null,null,null,null,""]
[null,null,null,null,""]
[null,null,null,null,""]
[null,null,null,null,""]
[null,null,null,null,""]
[null,null,null,null,""]
[null,null,null,null,""]
[null,null,null,null,""]
[null,null,null,null,""]
[null,null,null,null,""]
[null,null,null,null,""]
[null,null,null,null,""]
[null,null,null,null,""]
[null,null,null,null,""]
[null,null,null,null,""]
[null,null,null,null,""]
[null,null,null,null,""]
[null,null,null,null,""]
[null,null,null,null,""]
[null,null,null,null,""]
[null,null,null,null,""]
[null,null,null,null,""]
[null,null,null,null,""]
[null,null,null,null,""]
[null,null,null,null,""]
[null,null,null,null,""]
[null,null,null,null,""]
[null,null,null,null,""]
[null,null,null,null,""]
[null,null,null,null,""]
[null,null,null,null,""]
[null,null,null,null,""]
[null,null,null,null,""]
[null,null,null,null,""]
[null,null,null,null,""]
[null,null,null,null,""]
[null,null,null,null,""]
[null,null,null,null,""]
[null,null,null,null,{"$f":"IF(D130=\"\",\"\",DATEDIF(D130,$E$1,\"Y\"))","v":""}]
[null,null,null,null,""]
[null,null,null,null,""]
[null,null,null,null,""]
[null,null,null,null,""]
[null,null,null,null,""]
[null,null,null,null,""]
[null,null,null,null,""]
[null,null,null,null,""]
[null,null,null,null,""]
[null,null,null,null,""]
[null,null,null,null,""]
[null,null,null,null,""]
[null,null,null,null,""]
[null,null,null,null,""]
[null,null,null,null,""]
[null,null,null,null,""]
[null,null,null,null,""]
[null,null,null,null,""]
[null,null,null,null,""]
[null,null,null,null,""]
[null,null,null,null,""]
[null,null,null,null,""]
[null,null,null,null,""]
[null,null,null,null,""]
[null,null,null,null,""]
[null,null,null,null,""]
[null,null,null,null,""]
[null,null,null,null,""]
[null,null,null,null,""]
[null,null,null,null,""]
[null,null,null,null,""]
[null,null,null,null,""]
[null,null,null,null,""]
[null,null,null,null,""]
[null,null,null,null,""]
[null,null,null,null,""]
[null,null,null,null,""]
[null,null,null,null,""]
[null,null,null,null,""]
[null,null,null,null,""]
[null,null,null,null,""]
[null,null,null,null,""]
[null,null,null,null,""]
[null,null,null,null,""]
[null,null,null,null,""]
[null,null,null,null,""]
[null,null,null,null,""]
[null,null,null,null,""]
[null,null,null,null,""]
[null,null,null,null,""]
[null,null,null,null,""]
[null,null,null,null,""]
[null,null,null,null,""]
[null,null,null,null,""]
[null,null,null,null,""]
[null,null,null,null,""]
[null,null,null,null,""]
[null,null,null,null,""]
[null,null,null,null,""]
[null,null,null,null,""]
[null,null,null,null,""]
[null,null,null,null,""]
[null,null,null,null,""]
[null,null,null,null,{"$f":"IF(D194=\"\",\"\",DATEDIF(D194,$E$1,\"Y\"))","v":""}]
[null,null,null,null,""]
[null,null,null,null,""]
[null,null,null,null,""]
[null,null,null,null,""]
[null,null,null,null,""]
[null,null,null,null,""]
[null,null,null,null,""]
[null,null,null,null,""]
[null,null,null,null,""]
[null,null,null,null,""]
[null,null,null,null,""]
[null,null,null,null,""]
[null,null,null,null,""]
[null,null,null,null,""]
[null,null,null,null,""]
[null,null,null,null,""]
[null,null,null,null,""]
[null,null,null,null,""]
[null,null,null,null,""]
[null,null,null,null,""]
[null,null,null,null,""]
[null,null,null,null,""]
[null,null,null,null,""]
[null,null,null,null,""]
[null,null,null,null,""]
[null,null,null,null,""]
[null,null,null,null,""]
[null,null,null,null,""]
[null,null,null,null,""]
[null,null,null,null,""]
[null,null,null,null,""]
[null,null,null,null,""]
[null,null,null,null,""]
[null,null,null,null,""]
[null,null,null,null,""]
[null,null,null,null,""]
[null,null,null,null,""]
[null,null,null,null,""]
[null,null,null,null,""]
[null,null,null,null,""]
[null,null,null,null,""]
[null,null,null,null,""]
[null,null,null,null,""]
[null,null,null,null,""]
[null,null,null,null,""]
[null,null,null,null,""]
[null,null,null,null,""]
[null,null,null,null,""]
[null,null,null,null,""]
[null,null,null,null,""]
[null,null,null,null,""]
[null,null,null,null,""]
[null,null,null,null,""]
[null,null,null,null,""]
[null,null,null,null,""]
[null,null,null,null,""]
[null,null,null,null,""]
[null,null,null,null,""]
[null,null,null,null,""]
[null,null,null,null,""]
[null,null,null,null,""]
[null,null,null,null,""]
[null,null,null,null,""]
[null,null,null,null,{"$f":"IF(D258=\"\",\"\",DATEDIF(D258,$E$1,\"Y\"))","v":""}]
[null,null,null,null,""]
[null,null,null,null,""]
[null,null,null,null,""]
[null,null,null,null,""]
[null,null,null,null,""]
[null,null,null,null,""]
[null,null,null,null,""]
[null,null,null,null,""]
[null,null,null,null,""]
[null,null,null,null,""]
[null,null,null,null,""]
[null,null,null,null,""]
[null,null,null,null,""]
[null,null,null,null,""]
[null,null,null,null,""]
[null,null,null,null,""]
[null,null,null,null,""]
[null,null,null,null,""]
[null,null,null,null,""]
[null,null,null,null,""]
[null,null,null,null,""]
[null,null,null,null,""]
[null,null,null,null,""]
[null,null,null,null,""]
[null,null,null,null,""]
[null,null,null,null,""]
[null,null,null,null,""]
[null,null,null,null,""]
[null,null,null,null,""]
[null,null,null,null,""]
[null,null,null,null,""]
[null,null,null,null,""]
[null,null,null,null,""]
[null,null,null,null,""]
[null,null,null,null,""]
[null,null,null,null,""]
[null,null,null,null,""]
[null,null,null,null,""]
[null,null,null,null,""]
[null,null,null,null,""]
[null,null,null,null,""]
[null,null,null,null,""]
[null,null,null,null,""]
[null,null,null,null,""]
[null,null,null,null,""]
[null,null,null,null,""]
[null,null,null,null,""]
[null,null,null,null,""]
[null,null,null,null,""]
[null,null,null,null,""]
[null,null,null,null,""]
[null,null,null,null,""]
[null,null,null,null,""]
[null,null,null,null,""]
[null,null,null,null,""]
[null,null,null,null,""]
[null,null,null,null,""]
[null,null,null,null,""]
[null,null,null,null,""]
[null,null,null,null,""]
[null,null,null,null,""]
[null,null,null,null,""]
[null,null,null,null,""]
[null,null,null,null,{"$f":"IF(D322=\"\",\"\",DATEDIF(D322,$E$1,\"Y\"))","v":""}]
[null,null,null,null,""]
[null,null,null,null,""]
[null,null,null,null,""]
[null,null,null,null,""]
[null,null,null,null,""]
[null,null,null,null,""]
[null,null,null,null,""]
[null,null,null,null,""]
[null,null,null,null,""]
[null,null,null,null,""]
[null,null,null,null,""]
[null,null,null,null,""]
[null,null,null,null,""]
[null,null,null,null,""]
[null,null,null,null,""]
[null,null,null,null,""]
[null,null,null,null,""]
[null,null,null,null,""]
[null,null,null,null,""]
[null,null,null,null,""]
[null,null,null,null,""]
[null,null,null,null,""]
[null,null,null,null,""]
[null,null,null,null,""]
[null,null,null,null,""]
[null,null,null,null,""]
[null,null,null,null,""]
[null,null,null,null,""]
[null,null,null,null,""]
[null,null,null,null,""]
[null,null,null,null,""]
[null,null,null,null,""]
[null,null,null,null,""]
[null,null,null,null,""]
[null,null,null,null,""]
[null,null,null,null,""]
[null,null,null,null,""]
[null,null,null,null,""]
[null,null,null,null,""]
[null,null,null,null,""]
[null,null,null,null,""]
[null,null,null,null,""]
[null,null,null,null,""]
[null,null,null,null,""]
[null,null,null,null,""]
[null,null,null,null,""]
[null,null,null,null,""]
[null,null,null,null,""]
[null,null,null,null,""]
[null,null,null,null,""]
[null,null,null,null,""]
[null,null,null,null,""]
[null,null,null,null,""]
[null,null,null,null,""]
[null,null,null,null,""]
[null,null,null,null,""]
[null,null,null,null,""]
[null,null,null,null,""]
[null,null,null,null,""]
[null,null,null,null,""]
[null,null,null,null,""]
[null,null,null,null,""]
[null,null,null,null,""]
[null,null,null,null,{"$f":"IF(D386=\"\",\"\",DATEDIF(D386,$E$1,\"Y\"))","v":""}]
[null,null,null,null,""]
[null,null,null,null,""]
[null,null,null,null,""]
[null,null,null,null,""]
[null,null,null,null,""]
[null,null,null,null,""]
[null,null,null,null,""]
[null,null,null,null,""]
[null,null,null,null,""]
[null,null,null,null,""]
[null,null,null,null,""]
[null,null,null,null,""]
[null,null,null,null,""]
[null,null,null,null,""]
[null,null,null,null,""]
[null,null,null,null,""]
[null,null,null,null,""]
[null,null,null,null,""]
[null,null,null,null,""]
[null,null,null,null,""]
[null,null,null,null,""]
[null,null,null,null,""]
[null,null,null,null,""]
[null,null,null,null,""]
[null,null,null,null,""]
[null,null,null,null,""]
[null,null,null,null,""]
[null,null,null,null,""]
[null,null,null,null,""]
[null,null,null,null,""]
[null,null,null,null,""]
[null,null,null,null,""]
[null,null,null,null,""]
[null,null,null,null,""]
[null,null,null,null,""]
[null,null,null,null,""]
[null,null,null,null,""]
[null,null,null,null,""]
[null,null,null,null,""]
[null,null,null,null,""]
[null,null,null,null,""]
[null,null,null,null,""]
[null,null,null,null,""]
[null,null,null,null,""]
[null,null,null,null,""]
[null,null,null,null,""]
[null,null,null,null,""]
[null,null,null,null,""]
[null,null,null,null,""]
[null,null,null,null,""]
[null,null,null,null,""]
[null,null,null,null,""]
[null,null,null,null,""]
[null,null,null,null,""]
[null,null,null,null,""]
[null,null,null,null,""]
[null,null,null,null,""]
[null,null,null,null,""]
[null,null,null,null,""]
[null,null,null,null,""]
[null,null,null,null,""]
[null,null,null,null,""]
[null,null,null,null,""]
[null,null,null,null,{"$f":"IF(D450=\"\",\"\",DATEDIF(D450,$E$1,\"Y\"))","v":""}]
[null,null,null,null,""]
[null,null,null,null,""]
[null,null,null,null,""]
[null,null,null,null,""]
[null,null,null,null,""]
[null,null,null,null,""]
[null,null,null,null,""]
[null,null,null,null,""]
[null,null,null,null,""]
[null,null,null,null,""]
[null,null,null,null,""]
[null,null,null,null,""]
[null,null,null,null,""]
[null,null,null,null,""]
[null,null,null,null,""]
[null,null,null,null,""]
[null,null,null,null,""]
[null,null,null,null,""]
[null,null,null,null,""]
[null,null,null,null,""]
[null,null,null,null,""]
[null,null,null,null,""]
[null,null,null,null,""]
[null,null,null,null,""]
[null,null,null,null,""]
[null,null,null,null,""]
[null,null,null,null,""]
[null,null,null,null,""]
[null,null,null,null,""]
[null,null,null,null,""]
[null,null,null,null,""]
[null,null,null,null,""]
[null,null,null,null,""]
[null,null,null,null,""]
[null,null,null,null,""]
[null,null,null,null,""]
[null,null,null,null,""]
[null,null,null,null,""]
[null,null,null,null,""]
[null,null,null,null,""]
[null,null,null,null,""]
[null,null,null,null,""]
[null,null,null,null,""]
[null,null,null,null,""]
[null,null,null,null,""]
[null,null,null,null,""]
[null,null,null,null,""]
[null,null,null,null,""]
[null,null,null,null,""]
[null,null,null,null,""]
[null,null,null,null,""]
[null,null,null,null,""]
[null,null,null,null,""]
[null,null,null,null,""]
[null,null,null,null,""]
[null,null,null,null,""]
[null,null,null,null,""]
[null,null,null,null,""]
[null,null,null,null,""]
[null,null,null,null,""]
[null,null,null,null,""]
[null,null,null,null,""]
[null,null,null,null,""]
[null,null,null,null,{"$f":"IF(D514=\"\",\"\",DATEDIF(D514,$E$1,\"Y\"))","v":""}]
[null,null,null,null,""]
[null,null,null,null,""]
[null,null,null,null,""]
[null,null,null,null,""]
[null,null,null,null,""]
[null,null,null,null,""]
[null,null,null,null,""]
[null,null,null,null,""]
[null,null,null,null,""]
[null,null,null,null,""]
[null,null,null,null,""]
[null,null,null,null,""]
[null,null,null,null,""]
[null,null,null,null,""]
[null,null,null,null,""]
[null,null,null,null,""]
[null,null,null,null,""]
[null,null,null,null,""]
[null,null,null,null,""]
[null,null,null,null,""]
[null,null,null,null,""]
[null,null,null,null,""]
[null,null,null,null,""]
[null,null,null,null,""]
[null,null,null,null,""]
[null,null,null,null,""]
[null,null,null,null,""]
[null,null,null,null,""]
[null,null,null,null,""]
[null,null,null,null,""]
[null,null,null,null,""]
[null,null,null,null,""]
[null,null,null,null,""]
[null,null,null,null,""]
[null,null,null,null,""]
[null,null,null,null,""]
[null,null,null,null,""]
[null,null,null,null,""]
[null,null,null,null,""]
[null,null,null,null,""]
[null,null,null,null,""]
[null,null,null,null,""]
[null,null,null,null,""]
[null,null,null,null,""]
[null,null,null,null,""]
[null,null,null,null,""]
[null,null,null,null,""]
[null,null,null,null,""]
[null,null,null,null,""]
[null,null,null,null,""]
[null,null,null,null,""]
[null,null,null,null,""]
[null,null,null,null,""]
[null,null,null,null,""]
[null,null,null,null,""]
[null,null,null,null,""]
[null,null,null,null,""]
[null,null,null,null,""]
[null,null,null,null,""]
[null,null,null,null,""]
[null,null,null,null,""]
[null,null,null,null,""]
[null,null,null,null,""]
[null,null,null,null,{"$f":"IF(D578=\"\",\"\",DATEDIF(D578,$E$1,\"Y\"))","v":""}]
[null,null,null,null,""]
[null,null,null,null,""]
[null,null,null,null,""]
[null,null,null,null,""]
[null,null,null,null,""]
[null,null,null,null,""]
[null,null,null,null,""]
[null,null,null,null,""]
[null,null,null,null,""]
[null,null,null,null,""]
[null,null,null,null,""]
[null,null,null,null,""]
[null,null,null,null,""]
[null,null,null,null,""]
[null,null,null,null,""]
[null,null,null,null,""]
[null,null,null,null,""]
[null,null,null,null,""]
[null,null,null,null,""]
[null,null,null,null,""]
[null,null,null,null,""]
[null,null,null,null,""]
[null,null,null,null,""]
[null,null,null,null,""]
[null,null,null,null,""]
[null,null,null,null,""]
[null,null,null,null,""]
[null,null,null,null,""]
[null,null,null,null,""]
[null,null,null,null,""]
[null,null,null,null,""]
[null,null,null,null,""]
[null,null,null,null,""]
[null,null,null,null,""]
[null,null,null,null,""]
[null,null,null,null,""]
[null,null,null,null,""]
[null,null,null,null,""]
[null,null,null,null,""]
[null,null,null,null,""]
[null,null,null,null,""]
[null,null,null,null,""]
[null,null,null,null,""]
[null,null,null,null,""]
[null,null,null,null,""]
[null,null,null,null,""]
[null,null,null,null,""]
[null,null,null,null,""]
[null,null,null,null,""]
[null,null,null,null,""]
[null,null,null,null,""]
[null,null,null,null,""]
[null,null,null,null,""]
[null,null,null,null,""]
[null,null,null,null,""]
[null,null,null,null,""]
[null,null,null,null,""]
[null,null,null,null,""]
[null,null,null,null,""]
[null,null,null,null,""]
[null,null,null,null,""]
[null,null,null,null,""]
[null,null,null,null,""]
[null,null,null,null,{"$f":"IF(D642=\"\",\"\",DATEDIF(D642,$E$1,\"Y\"))","v":""}]
[null,null,null,null,""]
[null,null,null,null,""]
[null,null,null,null,""]
[null,null,null,null,""]
[null,null,null,null,""]
[null,null,null,null,""]
[null,null,null,null,""]
[null,null,null,null,""]
[null,null,null,null,""]
[null,null,null,null,""]
[null,null,null,null,""]
[null,null,null,null,""]
[null,null,null,null,""]
[null,null,null,null,""]
[null,null,null,null,""]
[null,null,null,null,""]
[null,null,null,null,""]
[null,null,null,null,""]
[null,null,null,null,""]
[null,null,null,null,""]
[null,null,null,null,""]
[null,null,null,null,""]
[null,null,null,null,""]
[null,null,null,null,""]
[null,null,null,null,""]
[null,null,null,null,""]
[null,null,null,null,""]
[null,null,null,null,""]
[null,null,null,null,""]
[null,null,null,null,""]
[null,null,null,null,""]
[null,null,null,null,""]
[null,null,null,null,""]
[null,null,null,null,""]
[null,null,null,null,""]
[null,null,null,null,""]
[null,null,null,null,""]
[null,null,null,null,""]
[null,null,null,null,""]
[null,null,null,null,""]
[null,null,null,null,""]
[null,null,null,null,""]
[null,null,null,null,""]
[null,null,null,null,""]
[null,null,null,null,""]
[null,null,null,null,""]
[null,null,null,null,""]
[null,null,null,null,""]
[null,null,null,null,""]
[null,null,null,null,""]
[null,null,null,null,""]
[null,null,null,null,""]
[null,null,null,null,""]
[null,null,null,null,""]
[null,null,null,null,""]
[null,null,null,null,""]
[null,null,null,null,""]
[null,null,null,null,""]
[null,null,null,null,""]
[null,null,null,null,""]
[null,null,null,null,""]
[null,null,null,null,""]
[null,null,null,null,""]
[null,null,null,null,{"$f":"IF(D706=\"\",\"\",DATEDIF(D706,$E$1,\"Y\"))","v":""}]
[null,null,null,null,""]
[null,null,null,null,""]
[null,null,null,null,""]
[null,null,null,null,""]
[null,null,null,null,""]
[null,null,null,null,""]
[null,null,null,null,""]
[null,null,null,null,""]
[null,null,null,null,""]
[null,null,null,null,""]
[null,null,null,null,""]
[null,null,null,null,""]
[null,null,null,null,""]
[null,null,null,null,""]
[null,null,null,null,""]
[null,null,null,null,""]
[null,null,null,null,""]
[null,null,null,null,""]
[null,null,null,null,""]
[null,null,null,null,""]
[null,null,null,null,""]
[null,null,null,null,""]
[null,null,null,null,""]
[null,null,null,null,""]
[null,null,null,null,""]
[null,null,null,null,""]
[null,null,null,null,""]
[null,null,null,null,""]
[null,null,null,null,""]
[null,null,null,null,""]
[null,null,null,null,""]
[null,null,null,null,""]
[null,null,null,null,""]
[null,null,null,null,""]
[null,null,null,null,""]
[null,null,null,null,""]
[null,null,null,null,""]
[null,null,null,null,""]
[null,null,null,null,""]
[null,null,null,null,""]
[null,null,null,null,""]
[null,null,null,null,""]
[null,null,null,null,""]
[null,null,null,null,""]
[null,null,null,null,""]
[null,null,null,null,""]
[null,null,null,null,""]
[null,null,null,null,""]
[null,null,null,null,""]
[null,null,null,null,""]
[null,null,null,null,""]
[null,null,null,null,""]
[null,null,null,null,""]
[null,null,null,null,""]
[null,null,null,null,""]
[null,null,null,null,""]
[null,null,null,null,""]
[null,null,null,null,""]
[null,null,null,null,""]
[null,null,null,null,""]
[null,null,null,null,""]
[null,null,null,null,""]
[null,null,null,null,""]
[null,null,null,null,{"$f":"IF(D770=\"\",\"\",DATEDIF(D770,$E$1,\"Y\"))","v":""}]
[null,null,null,null,""]
[null,null,null,null,""]
[null,null,null,null,""]
[null,null,null,null,""]
[null,null,null,null,""]
[null,null,null,null,""]
[null,null,null,null,""]
[null,null,null,null,""]
[null,null,null,null,""]
[null,null,null,null,""]
[null,null,null,null,""]
[null,null,null,null,""]
[null,null,null,null,""]
[null,null,null,null,""]
[null,null,null,null,""]
[null,null,null,null,""]
[null,null,null,null,""]
[null,null,null,null,""]
[null,null,null,null,""]
[null,null,null,null,""]
[null,null,null,null,""]
[null,null,null,null,""]
[null,null,null,null,""]
[null,null,null,null,""]
[null,null,null,null,""]
[null,null,null,null,""]
[null,null,null,null,""]
[null,null,null,null,""]
[null,null,null,null,""]
[null,null,null,null,""]
[null,null,null,null,""]
[null,null,null,null,""]
[null,null,null,null,""]
[null,null,null,null,""]
[null,null,null,null,""]
[null,null,null,null,""]
[null,null,null,null,""]
[null,null,null,null,""]
[null,null,null,null,""]
[null,null,null,null,""]
[null,null,null,null,""]
[null,null,null,null,""]
[null,null,null,null,""]
[null,null,null,null,""]
[null,null,null,null,""]
[null,null,null,null,""]
[null,null,null,null,""]
[null,null,null,null,""]
[null,null,null,null,""]
[null,null,null,null,""]
[null,null,null,null,""]
[null,null,null,null,""]
[null,null,null,null,""]
[null,null,null,null,""]
[null,null,null,null,""]
[null,null,null,null,""]
[null,null,null,null,""]
[null,null,null,null,""]
[null,null,null,null,""]
[null,null,null,null,""]
[null,null,null,null,""]
[null,null,null,null,""]
[null,null,null,null,""]
[null,null,null,null,{"$f":"IF(D834=\"\",\"\",DATEDIF(D834,$E$1,\"Y\"))","v":""}]
[null,null,null,null,""]
[null,null,null,null,""]
[null,null,null,null,""]
[null,null,null,null,""]
[null,null,null,null,""]
[null,null,null,null,""]
[null,null,null,null,""]
[null,null,null,null,""]
[null,null,null,null,""]
[null,null,null,null,""]
[null,null,null,null,""]
[null,null,null,null,""]
[null,null,null,null,""]
[null,null,null,null,""]
[null,null,null,null,""]
[null,null,null,null,""]
[null,null,null,null,""]
[null,null,null,null,""]
[null,null,null,null,""]
[null,null,null,null,null,null,null,null,null,null,null,null,null,null,null,null,null,null,null,null,null,null,null,null,null,"",null,"",""]
[null,null,null,null,null,null,null,null,null,null,null,null,null,null,null,null,null,null,null,null,null,null,null,null,null,"",null,"",""]
[]
[]
[]
[]
[]
[]
[]
[]
[]
[]
[]
[]
[]
[]
[]
[]
[]
[]
[]
[]
[]
[]
[]
[]
[]
[]
[]
[]
[]
[]
[]
[]
[]
[]
[]
[]
[]
[]
[]
[]
[]
[]
[]
[]
[]
[]
[]
[]
[]
[]
[]
[]
[]
[]
[]
[]
[]
[]
[]
[]
[]
[]
[]
[]
[]
[]
[]
[]
[]
[]
[]
[]
[]
[]
[]
[]
[]
[]
[]
[]
[]
[]
[]
[]
[]
[]
[]
[]
[]
[]
[]
[]
[]
[]
[]
[]
[]
[]
[]
[]
[]
[]
[]
[]
[]
[]
[]
[]
[]
[]
[]
[]
[]
[]
[]
[]
[]
[]
[]
[]
[]
[]
[]
[]
[null,null,null,null,null,null,null,null,null,null,null,null,null,null,null,null,null,null,null,null,null,null,null,null,null,null,null,null,null,""]
[]
[]
[]
[]
[]
[]
[]
[]
[]
[]
[]
[]
[]
[]
[]
[]
[]
[]
[]
[]
[]
[]
[]
[]
[]
[]
[]
[]
[]
[]
[]
[]
[]
[]
[]
[]
[]
[]
[]
[]
[]
[]
[]
[]
[]
[]
[]
[]
[]
[]
[]
[]
[]
[]
[]
[]
[null,null,null,null,null,null,null,null,null,null,null,null,null,null,null,null,null,null,null,null,null,null,null,null,null,null,null,null,null,null,null,null,null,null,null,null,"Name"]
[null,null,null,null,null,null,null,null,null,null,null,null,null,null,null,null,null,null,null,null,null,null,null,null,null,null,null,null,null,null,null,null,null,null,null,null,"Vorname"]
[null,null,null,null,null,null,null,null,null,null,null,null,null,null,null,null,null,null,null,null,null,null,null,null,null,null,null,null,null,null,null,null,null,null,null,null,"Alter"]
[null,null,null,null,null,null,null,null,null,null,null,null,null,null,null,null,null,null,null,null,null,null,null,null,null,null,null,null,null,null,null,null,null,null,null,null,"PLZ"]
[null,null,null,null,null,null,null,null,null,null,null,null,null,null,null,null,null,null,null,null,null,null,null,null,null,null,null,null,null,null,null,null,null,null,null,null,"Eintrittsjahr"]
[null,null,null,null,null,null,null,null,null,null,null,null,null,null,null,null,null,null,null,null,null,null,null,null,null,null,null,null,null,null,null,null,null,null,null,null,"Sonstiges 1"]
[null,null,null,null,null,null,null,null,null,null,null,null,null,null,null,null,null,null,null,null,null,null,null,null,null,null,null,null,null,null,null,null,null,null,null,null,"Sonstiges 2"]
[null,null,null,null,null,null,null,null,null,null,null,null,null,null,null,null,null,null,null,null,null,null,null,null,null,null,null,null,null,null,null,null,null,null,null,null,"Sonstiges 3"]
[null,null,null,null,null,null,null,null,null,null,null,null,null,null,null,null,null,null,null,null,null,null,null,null,null,null,null,null,null,null,null,null,null,null,null,null,"Zusätzlich I"]
[null,null,null,null,null,null,null,null,null,null,null,null,null,null,null,null,null,null,null,null,null,null,null,null,null,null,null,null,null,null,null,null,null,null,null,null,"Zusätzlich II"]
[null,null,null,null,null,null,null,null,null,null,null,null,null,null,null,null,null,null,null,null,null,null,null,null,null,null,null,null,null,null,null,null,null,null,null,null,"Zusätzlich III"]

{"sheet":"Jugendleiter","index":5,"n_rows":1388,"n_cols":20,"rows_kept":1388,"cut":false,"hidden":false,"merged":[]}
[" Nr.","Name","Vorname","Straße","PLZ, Ort","Telefon","Email","Amt im Verein ","Geburtstag",{"$f":"TODAY()","v":"2019-10-07"},"Jugendleiter grundschulung Teil I","Jugendleiter grundschulung Teil II","Erste-Hilfe-Kurs","JULEICA Nr.","JULEICA       gültig bis",null,"(Bezeichnung eintragen)","(Bezeichnung eintragen)",{"$f":"Erhebungsbogen!I2","v":"(Vereinsort eintragen)"},{"$f":"Erhebungsbogen!J1","v":2019}]
[null,null,null,null,null,null,null,null,null,{"$f":"IF(I2=\"\",\"\",DATEDIF(I2,$J$1,\"Y\"))","v":""}]
[null,null,null,null,null,null,null,null,null,""]
[null,null,null,null,null,null,null,null,null,""]
[null,null,null,null,null,null,null,null,null,""]
[null,null,null,null,null,null,null,null,null,""]
[null,null,null,null,null,null,null,null,null,""]
[null,null,null,null,null,null,null,null,null,""]
[null,null,null,null,null,null,null,null,null,""]
[null,null,null,null,null,null,null,null,null,""]
[null,null,null,null,null,null,null,null,null,""]
[null,null,null,null,null,null,null,null,null,""]
[null,null,null,null,null,null,null,null,null,""]
[null,null,null,null,null,null,null,null,null,""]
[null,null,null,null,null,null,null,null,null,""]
[null,null,null,null,null,null,null,null,null,""]
[null,null,null,null,null,null,null,null,null,""]
[null,null,null,null,null,null,null,null,null,""]
[null,null,null,null,null,null,null,null,null,""]
[null,null,null,null,null,null,null,null,null,""]
[null,null,null,null,null,null,null,null,null,""]
[null,null,null,null,null,null,null,null,null,""]
[null,null,null,null,null,null,null,null,null,""]
[null,null,null,null,null,null,null,null,null,""]
[null,null,null,null,null,null,null,null,null,""]
[null,null,null,null,null,null,null,null,null,""]
[null,null,null,null,null,null,null,null,null,""]
[null,null,null,null,null,null,null,null,null,""]
[null,null,null,null,null,null,null,null,null,""]
[null,null,null,null,null,null,null,null,null,""]
[null,null,null,null,null,null,null,null,null,""]
[null,null,null,null,null,null,null,null,null,""]
[null,null,null,null,null,null,null,null,null,""]
[null,null,null,null,null,null,null,null,null,""]
[null,null,null,null,null,null,null,null,null,""]
[null,null,null,null,null,null,null,null,null,""]
[null,null,null,null,null,null,null,null,null,""]
[null,null,null,null,null,null,null,null,null,""]
[null,null,null,null,null,null,null,null,null,""]
[null,null,null,null,null,null,null,null,null,""]
[null,null,null,null,null,null,null,null,null,""]
[null,null,null,null,null,null,null,null,null,""]
[null,null,null,null,null,null,null,null,null,""]
[null,null,null,null,null,null,null,null,null,""]
[null,null,null,null,null,null,null,null,null,""]
[null,null,null,null,null,null,null,null,null,""]
[null,null,null,null,null,null,null,null,null,""]
[null,null,null,null,null,null,null,null,null,""]
[null,null,null,null,null,null,null,null,null,""]
[null,null,null,null,null,null,null,null,null,""]
[null,null,null,null,null,null,null,null,null,""]
[null,null,null,null,null,null,null,null,null,""]
[null,null,null,null,null,null,null,null,null,""]
[null,null,null,null,null,null,null,null,null,""]
[null,null,null,null,null,null,null,null,null,""]
[null,null,null,null,null,null,null,null,null,""]
[null,null,null,null,null,null,null,null,null,""]
[null,null,null,null,null,null,null,null,null,""]
[null,null,null,null,null,null,null,null,null,""]
[null,null,null,null,null,null,null,null,null,""]
[null,null,null,null,null,null,null,null,null,""]
[null,null,null,null,null,null,null,null,null,""]
[null,null,null,null,null,null,null,null,null,""]
[null,null,null,null,null,null,null,null,null,""]
[null,null,null,null,null,null,null,null,null,""]
[null,null,null,null,null,null,null,null,null,{"$f":"IF(I66=\"\",\"\",DATEDIF(I66,$J$1,\"Y\"))","v":""}]
[null,null,null,null,null,null,null,null,null,""]
[null,null,null,null,null,null,null,null,null,""]
[null,null,null,null,null,null,null,null,null,""]
[null,null,null,null,null,null,null,null,null,""]
[null,null,null,null,null,null,null,null,null,""]
[null,null,null,null,null,null,null,null,null,""]
[null,null,null,null,null,null,null,null,null,""]
[null,null,null,null,null,null,null,null,null,""]
[null,null,null,null,null,null,null,null,null,""]
[null,null,null,null,null,null,null,null,null,""]
[null,null,null,null,null,null,null,null,null,""]
[null,null,null,null,null,null,null,null,null,""]
[null,null,null,null,null,null,null,null,null,""]
[null,null,null,null,null,null,null,null,null,""]
[null,null,null,null,null,null,null,null,null,""]
[null,null,null,null,null,null,null,null,null,""]
[null,null,null,null,null,null,null,null,null,""]
[null,null,null,null,null,null,null,null,null,""]
[null,null,null,null,null,null,null,null,null,""]
[null,null,null,null,null,null,null,null,null,""]
[null,null,null,null,null,null,null,null,null,""]
[null,null,null,null,null,null,null,null,null,""]
[null,null,null,null,null,null,null,null,null,""]
[null,null,null,null,null,null,null,null,null,""]
[null,null,null,null,null,null,null,null,null,""]
[null,null,null,null,null,null,null,null,null,""]
[null,null,null,null,null,null,null,null,null,""]
[null,null,null,null,null,null,null,null,null,""]
[null,null,null,null,null,null,null,null,null,""]
[null,null,null,null,null,null,null,null,null,""]
[null,null,null,null,null,null,null,null,null,""]
[null,null,null,null,null,null,null,null,null,""]
[null,null,null,null,null,null,null,null,null,""]
[null,null,null,null,null,null,null,null,null,""]
[null,null,null,null,null,null,null,null,null,""]
[null,null,null,null,null,null,null,null,null,""]
[null,null,null,null,null,null,null,null,null,""]
[null,null,null,null,null,null,null,null,null,""]
[null,null,null,null,null,null,null,null,null,""]
[null,null,null,null,null,null,null,null,null,""]
[null,null,null,null,null,null,null,null,null,""]
[null,null,null,null,null,null,null,null,null,""]
[null,null,null,null,null,null,null,null,null,""]
[null,null,null,null,null,null,null,null,null,""]
[null,null,null,null,null,null,null,null,null,""]
[null,null,null,null,null,null,null,null,null,""]
[null,null,null,null,null,null,null,null,null,""]
[null,null,null,null,null,null,null,null,null,""]
[null,null,null,null,null,null,null,null,null,""]
[null,null,null,null,null,null,null,null,null,""]
[null,null,null,null,null,null,null,null,null,""]
[null,null,null,null,null,null,null,null,null,""]
[null,null,null,null,null,null,null,null,null,""]
[null,null,null,null,null,null,null,null,null,""]
[null,null,null,null,null,null,null,null,null,""]
[null,null,null,null,null,null,null,null,null,""]
[null,null,null,null,null,null,null,null,null,""]
[null,null,null,null,null,null,null,null,null,""]
[null,null,null,null,null,null,null,null,null,""]
[null,null,null,null,null,null,null,null,null,""]
[null,null,null,null,null,null,null,null,null,""]
[null,null,null,null,null,null,null,null,null,""]
[null,null,null,null,null,null,null,null,null,""]
[null,null,null,null,null,null,null,null,null,{"$f":"IF(I130=\"\",\"\",DATEDIF(I130,$J$1,\"Y\"))","v":""}]
[null,null,null,null,null,null,null,null,null,""]
[null,null,null,null,null,null,null,null,null,""]
[null,null,null,null,null,null,null,null,null,"",null,null,null,null,null,{"$f":"IF((COUNTA(K133,L133,M133,N133,O133)=5),1,\"\")","v":""}]
[null,null,null,null,null,null,null,null,null,"",null,null,null,null,null,""]
[null,null,null,null,null,null,null,null,null,"",null,null,null,null,null,""]
[null,null,null,null,null,null,null,null,null,"",null,null,null,null,null,""]
[null,null,null,null,null,null,null,null,null,"",null,null,null,null,null,""]
[null,null,null,null,null,null,null,null,null,"",null,null,null,null,null,""]
[null,null,null,null,null,null,null,null,null,"",null,null,null,null,null,""]
[null,null,null,null,null,null,null,null,null,"",null,null,null,null,null,""]
[null,null,null,null,null,null,null,null,null,"",null,null,null,null,null,""]
[null,null,null,null,null,null,null,null,null,"",null,null,null,null,null,""]
[null,null,null,null,null,null,null,null,null,"",null,null,null,null,null,""]
[null,null,null,null,null,null,null,null,null,"",null,null,null,null,null,""]
[null,null,null,null,null,null,null,null,null,"",null,null,null,null,null,""]
[null,null,null,null,null,null,null,null,null,"",null,null,null,null,null,""]
[null,null,null,null,null,null,null,null,null,"",null,null,null,null,null,""]
[null,null,null,null,null,null,null,null,null,"",null,null,null,null,null,""]
[null,null,null,null,null,null,null,null,null,"",null,null,null,null,null,""]
[null,null,null,null,null,null,null,null,null,"",null,null,null,null,null,""]
[null,null,null,null,null,null,null,null,null,"",null,null,null,null,null,""]
[null,null,null,null,null,null,null,null,null,"",null,null,null,null,null,""]
[null,null,null,null,null,null,null,null,null,"",null,null,null,null,null,""]
[null,null,null,null,null,null,null,null,null,"",null,null,null,null,null,""]
[null,null,null,null,null,null,null,null,null,"",null,null,null,null,null,""]
[null,null,null,null,null,null,null,null,null,"",null,null,null,null,null,""]
[null,null,null,null,null,null,null,null,null,"",null,null,null,null,null,""]
[null,null,null,null,null,null,null,null,null,"",null,null,null,null,null,""]
[null,null,null,null,null,null,null,null,null,"",null,null,null,null,null,""]
[null,null,null,null,null,null,null,null,null,"",null,null,null,null,null,""]
[null,null,null,null,null,null,null,null,null,"",null,null,null,null,null,""]
[null,null,null,null,null,null,null,null,null,"",null,null,null,null,null,""]
[null,null,null,null,null,null,null,null,null,"",null,null,null,null,null,""]
[null,null,null,null,null,null,null,null,null,"",null,null,null,null,null,""]
[null,null,null,null,null,null,null,null,null,"",null,null,null,null,null,{"$f":"IF((COUNTA(K165,L165,M165,N165,O165)=5),1,\"\")","v":""}]
[null,null,null,null,null,null,null,null,null,"",null,null,null,null,null,""]
[null,null,null,null,null,null,null,null,null,"",null,null,null,null,null,""]
[null,null,null,null,null,null,null,null,null,"",null,null,null,null,null,""]
[null,null,null,null,null,null,null,null,null,"",null,null,null,null,null,""]
[null,null,null,null,null,null,null,null,null,"",null,null,null,null,null,""]
[null,null,null,null,null,null,null,null,null,"",null,null,null,null,null,""]
[null,null,null,null,null,null,null,null,null,"",null,null,null,null,null,""]
[null,null,null,null,null,null,null,null,null,"",null,null,null,null,null,""]
[null,null,null,null,null,null,null,null,null,"",null,null,null,null,null,""]
[null,null,null,null,null,null,null,null,null,"",null,null,null,null,null,""]
[null,null,null,null,null,null,null,null,null,"",null,null,null,null,null,""]
[null,null,null,null,null,null,null,null,null,"",null,null,null,null,null,""]
[null,null,null,null,null,null,null,null,null,"",null,null,null,null,null,""]
[null,null,null,null,null,null,null,null,null,"",null,null,null,null,null,""]
[null,null,null,null,null,null,null,null,null,"",null,null,null,null,null,""]
[null,null,null,null,null,null,null,null,null,"",null,null,null,null,null,""]
[null,null,null,null,null,null,null,null,null,"",null,null,null,null,null,""]
[null,null,null,null,null,null,null,null,null,"",null,null,null,null,null,""]
[null,null,null,null,null,null,null,null,null,"",null,null,null,null,null,""]
[null,null,null,null,null,null,null,null,null,"",null,null,null,null,null,""]
[null,null,null,null,null,null,null,null,null,"",null,null,null,null,null,""]
[null,null,null,null,null,null,null,null,null,"",null,null,null,null,null,""]
[null,null,null,null,null,null,null,null,null,"",null,null,null,null,null,""]
[null,null,null,null,null,null,null,null,null,"",null,null,null,null,null,""]
[null,null,null,null,null,null,null,null,null,"",null,null,null,null,null,""]
[null,null,null,null,null,null,null,null,null,"",null,null,null,null,null,""]
[null,null,null,null,null,null,null,null,null,"",null,null,null,null,null,""]
[null,null,null,null,null,null,null,null,null,"",null,null,null,null,null,""]
[null,null,null,null,null,null,null,null,null,{"$f":"IF(I194=\"\",\"\",DATEDIF(I194,$J$1,\"Y\"))","v":""},null,null,null,null,null,""]
[null,null,null,null,null,null,null,null,null,"",null,null,null,null,null,""]
[null,null,null,null,null,null,null,null,null,"",null,null,null,null,null,""]
[null,null,null,null,null,null,null,null,null,"",null,null,null,null,null,{"$f":"IF((COUNTA(K197,L197,M197,N197,O197)=5),1,\"\")","v":""}]
[null,null,null,null,null,null,null,null,null,"",null,null,null,null,null,""]
[null,null,null,null,null,null,null,null,null,"",null,null,null,null,null,""]
[null,null,null,null,null,null,null,null,null,"",null,null,null,null,null,""]
[null,null,null,null,null,null,null,null,null,"",null,null,null,null,null,""]
[null,null,null,null,null,null,null,null,null,"",null,null,null,null,null,""]
[null,null,null,null,null,null,null,null,null,"",null,null,null,null,null,""]
[null,null,null,null,null,null,null,null,null,"",null,null,null,null,null,""]
[null,null,null,null,null,null,null,null,null,"",null,null,null,null,null,""]
[null,null,null,null,null,null,null,null,null,"",null,null,null,null,null,""]
[null,null,null,null,null,null,null,null,null,"",null,null,null,null,null,""]
[null,null,null,null,null,null,null,null,null,"",null,null,null,null,null,""]
[null,null,null,null,null,null,null,null,null,"",null,null,null,null,null,""]
[null,null,null,null,null,null,null,null,null,"",null,null,null,null,null,""]
[null,null,null,null,null,null,null,null,null,"",null,null,null,null,null,""]
[null,null,null,null,null,null,null,null,null,"",null,null,null,null,null,""]
[null,null,null,null,null,null,null,null,null,"",null,null,null,null,null,""]
[null,null,null,null,null,null,null,null,null,"",null,null,null,null,null,""]
[null,null,null,null,null,null,null,null,null,"",null,null,null,null,null,""]
[null,null,null,null,null,null,null,null,null,""]
[null,null,null,null,null,null,null,null,null,""]
[null,null,null,null,null,null,null,null,null,""]
[null,null,null,null,null,null,null,null,null,""]
[null,null,null,null,null,null,null,null,null,""]
[null,null,null,null,null,null,null,null,null,""]
[null,null,null,null,null,null,null,null,null,""]
[null,null,null,null,null,null,null,null,null,""]
[null,null,null,null,null,null,null,null,null,""]
[null,null,null,null,null,null,null,null,null,""]
[null,null,null,null,null,null,null,null,null,""]
[null,null,null,null,null,null,null,null,null,""]
[null,null,null,null,null,null,null,null,null,""]
[null,null,null,null,null,null,null,null,null,""]
[null,null,null,null,null,null,null,null,null,""]
[null,null,null,null,null,null,null,null,null,""]
[null,null,null,null,null,null,null,null,null,""]
[null,null,null,null,null,null,null,null,null,""]
[null,null,null,null,null,null,null,null,null,""]
[null,null,null,null,null,null,null,null,null,""]
[null,null,null,null,null,null,null,null,null,""]
[null,null,null,null,null,null,null,null,null,""]
[null,null,null,null,null,null,null,null,null,""]
[null,null,null,null,null,null,null,null,null,""]
[null,null,null,null,null,null,null,null,null,""]
[null,null,null,null,null,null,null,null,null,""]
[null,null,null,null,null,null,null,null,null,""]
[null,null,null,null,null,null,null,null,null,""]
[null,null,null,null,null,null,null,null,null,""]
[null,null,null,null,null,null,null,null,null,""]
[null,null,null,null,null,null,null,null,null,""]
[null,null,null,null,null,null,null,null,null,""]
[null,null,null,null,null,null,null,null,null,""]
[null,null,null,null,null,null,null,null,null,""]
[null,null,null,null,null,null,null,null,null,""]
[null,null,null,null,null,null,null,null,null,""]
[null,null,null,null,null,null,null,null,null,""]
[null,null,null,null,null,null,null,null,null,""]
[null,null,null,null,null,null,null,null,null,""]
[null,null,null,null,null,null,null,null,null,""]
[null,null,null,null,null,null,null,null,null,""]
[null,null,null,null,null,null,null,null,null,""]
[null,null,null,null,null,null,null,null,null,{"$f":"IF(I258=\"\",\"\",DATEDIF(I258,$J$1,\"Y\"))","v":""}]
[null,null,null,null,null,null,null,null,null,""]
[null,null,null,null,null,null,null,null,null,""]
[null,null,null,null,null,null,null,null,null,""]
[null,null,null,null,null,null,null,null,null,""]
[null,null,null,null,null,null,null,null,null,""]
[null,null,null,null,null,null,null,null,null,""]
[null,null,null,null,null,null,null,null,null,""]
[null,null,null,null,null,null,null,null,null,""]
[null,null,null,null,null,null,null,null,null,""]
[null,null,null,null,null,null,null,null,null,""]
[null,null,null,null,null,null,null,null,null,""]
[null,null,null,null,null,null,null,null,null,""]
[null,null,null,null,null,null,null,null,null,""]
[null,null,null,null,null,null,null,null,null,""]
[null,null,null,null,null,null,null,null,null,""]
[null,null,null,null,null,null,null,null,null,""]
[null,null,null,null,null,null,null,null,null,""]
[null,null,null,null,null,null,null,null,null,""]
[null,null,null,null,null,null,null,null,null,""]
[null,null,null,null,null,null,null,null,null,""]
[null,null,null,null,null,null,null,null,null,""]
[null,null,null,null,null,null,null,null,null,""]
[null,null,null,null,null,null,null,null,null,""]
[null,null,null,null,null,null,null,null,null,""]
[null,null,null,null,null,null,null,null,null,""]
[null,null,null,null,null,null,null,null,null,""]
[null,null,null,null,null,null,null,null,null,""]
[null,null,null,null,null,null,null,null,null,""]
[null,null,null,null,null,null,null,null,null,""]
[null,null,null,null,null,null,null,null,null,""]
[null,null,null,null,null,null,null,null,null,""]
[null,null,null,null,null,null,null,null,null,""]
[null,null,null,null,null,null,null,null,null,""]
[null,null,null,null,null,null,null,null,null,""]
[null,null,null,null,null,null,null,null,null,""]
[null,null,null,null,null,null,null,null,null,""]
[null,null,null,null,null,null,null,null,null,""]
[null,null,null,null,null,null,null,null,null,""]
[null,null,null,null,null,null,null,null,null,""]
[null,null,null,null,null,null,null,null,null,""]
[null,null,null,null,null,null,null,null,null,""]
[null,null,null,null,null,null,null,null,null,""]
[null,null,null,null,null,null,null,null,null,""]
[null,null,null,null,null,null,null,null,null,""]
[null,null,null,null,null,null,null,null,null,""]
[null,null,null,null,null,null,null,null,null,""]
[null,null,null,null,null,null,null,null,null,""]
[null,null,null,null,null,null,null,null,null,""]
[null,null,null,null,null,null,null,null,null,""]
[null,null,null,null,null,null,null,null,null,""]
[null,null,null,null,null,null,null,null,null,""]
[null,null,null,null,null,null,null,null,null,""]
[null,null,null,null,null,null,null,null,null,""]
[null,null,null,null,null,null,null,null,null,""]
[null,null,null,null,null,null,null,null,null,""]
[null,null,null,null,null,null,null,null,null,""]
[null,null,null,null,null,null,null,null,null,""]
[null,null,null,null,null,null,null,null,null,""]
[null,null,null,null,null,null,null,null,null,""]
[null,null,null,null,null,null,null,null,null,""]
[null,null,null,null,null,null,null,null,null,""]
[null,null,null,null,null,null,null,null,null,""]
[null,null,null,null,null,null,null,null,null,""]
[null,null,null,null,null,null,null,null,null,{"$f":"IF(I322=\"\",\"\",DATEDIF(I322,$J$1,\"Y\"))","v":""}]
[null,null,null,null,null,null,null,null,null,""]
[null,null,null,null,null,null,null,null,null,""]
[null,null,null,null,null,null,null,null,null,""]
[null,null,null,null,null,null,null,null,null,""]
[null,null,null,null,null,null,null,null,null,""]
[null,null,null,null,null,null,null,null,null,""]
[null,null,null,null,null,null,null,null,null,""]
[null,null,null,null,null,null,null,null,null,""]
[null,null,null,null,null,null,null,null,null,""]
[null,null,null,null,null,null,null,null,null,""]
[null,null,null,null,null,null,null,null,null,""]
[null,null,null,null,null,null,null,null,null,""]
[null,null,null,null,null,null,null,null,null,""]
[null,null,null,null,null,null,null,null,null,""]
[null,null,null,null,null,null,null,null,null,""]
[null,null,null,null,null,null,null,null,null,""]
[null,null,null,null,null,null,null,null,null,""]
[null,null,null,null,null,null,null,null,null,""]
[null,null,null,null,null,null,null,null,null,""]
[null,null,null,null,null,null,null,null,null,""]
[null,null,null,null,null,null,null,null,null,""]
[null,null,null,null,null,null,null,null,null,""]
[null,null,null,null,null,null,null,null,null,""]
[null,null,null,null,null,null,null,null,null,""]
[null,null,null,null,null,null,null,null,null,""]
[null,null,null,null,null,null,null,null,null,""]
[null,null,null,null,null,null,null,null,null,""]
[null,null,null,null,null,null,null,null,null,""]
[null,null,null,null,null,null,null,null,null,""]
[null,null,null,null,null,null,null,null,null,""]
[null,null,null,null,null,null,null,null,null,""]
[null,null,null,null,null,null,null,null,null,""]
[null,null,null,null,null,null,null,null,null,""]
[null,null,null,null,null,null,null,null,null,""]
[null,null,null,null,null,null,null,null,null,""]
[null,null,null,null,null,null,null,null,null,""]
[null,null,null,null,null,null,null,null,null,""]
[null,null,null,null,null,null,null,null,null,""]
[null,null,null,null,null,null,null,null,null,""]
[null,null,null,null,null,null,null,null,null,""]
[null,null,null,null,null,null,null,null,null,""]
[null,null,null,null,null,null,null,null,null,""]
[null,null,null,null,null,null,null,null,null,""]
[null,null,null,null,null,null,null,null,null,""]
[null,null,null,null,null,null,null,null,null,""]
[null,null,null,null,null,null,null,null,null,""]
[null,null,null,null,null,null,null,null,null,""]
[null,null,null,null,null,null,null,null,null,""]
[null,null,null,null,null,null,null,null,null,""]
[null,null,null,null,null,null,null,null,null,""]
[null,null,null,null,null,null,null,null,null,""]
[null,null,null,null,null,null,null,null,null,""]
[null,null,null,null,null,null,null,null,null,""]
[null,null,null,null,null,null,null,null,null,""]
[null,null,null,null,null,null,null,null,null,""]
[null,null,null,null,null,null,null,null,null,""]
[null,null,null,null,null,null,null,null,null,""]
[null,null,null,null,null,null,null,null,null,""]
[null,null,null,null,null,null,null,null,null,""]
[null,null,null,null,null,null,null,null,null,""]
[null,null,null,null,null,null,null,null,null,""]
[null,null,null,null,null,null,null,null,null,""]
[null,null,null,null,null,null,null,null,null,""]
[null,null,null,null,null,null,null,null,null,{"$f":"IF(I386=\"\",\"\",DATEDIF(I386,$J$1,\"Y\"))","v":""}]
[null,null,null,null,null,null,null,null,null,""]
[null,null,null,null,null,null,null,null,null,""]
[null,null,null,null,null,null,null,null,null,""]
[null,null,null,null,null,null,null,null,null,""]
[null,null,null,null,null,null,null,null,null,""]
[null,null,null,null,null,null,null,null,null,""]
[null,null,null,null,null,null,null,null,null,""]
[null,null,null,null,null,null,null,null,null,""]
[null,null,null,null,null,null,null,null,null,""]
[null,null,null,null,null,null,null,null,null,""]
[null,null,null,null,null,null,null,null,null,""]
[null,null,null,null,null,null,null,null,null,""]
[null,null,null,null,null,null,null,null,null,""]
[null,null,null,null,null,null,null,null,null,""]
[null,null,null,null,null,null,null,null,null,""]
[null,null,null,null,null,null,null,null,null,""]
[null,null,null,null,null,null,null,null,null,""]
[null,null,null,null,null,null,null,null,null,""]
[null,null,null,null,null,null,null,null,null,""]
[null,null,null,null,null,null,null,null,null,""]
[null,null,null,null,null,null,null,null,null,""]
[null,null,null,null,null,null,null,null,null,""]
[null,null,null,null,null,null,null,null,null,""]
[null,null,null,null,null,null,null,null,null,""]
[null,null,null,null,null,null,null,null,null,""]
[null,null,null,null,null,null,null,null,null,""]
[null,null,null,null,null,null,null,null,null,""]
[null,null,null,null,null,null,null,null,null,""]
[null,null,null,null,null,null,null,null,null,""]
[null,null,null,null,null,null,null,null,null,""]
[null,null,null,null,null,null,null,null,null,""]
[null,null,null,null,null,null,null,null,null,""]
[null,null,null,null,null,null,null,null,null,""]
[null,null,null,null,null,null,null,null,null,""]
[null,null,null,null,null,null,null,null,null,""]
[null,null,null,null,null,null,null,null,null,""]
[null,null,null,null,null,null,null,null,null,""]
[null,null,null,null,null,null,null,null,null,""]
[null,null,null,null,null,null,null,null,null,""]
[null,null,null,null,null,null,null,null,null,""]
[null,null,null,null,null,null,null,null,null,""]
[null,null,null,null,null,null,null,null,null,""]
[null,null,null,null,null,null,null,null,null,""]
[null,null,null,null,null,null,null,null,null,""]
[null,null,null,null,null,null,null,null,null,""]
[null,null,null,null,null,null,null,null,null,""]
[null,null,null,null,null,null,null,null,null,""]
[null,null,null,null,null,null,null,null,null,""]
[null,null,null,null,null,null,null,null,null,""]
[null,null,null,null,null,null,null,null,null,""]
[null,null,null,null,null,null,null,null,null,""]
[null,null,null,null,null,null,null,null,null,""]
[null,null,null,null,null,null,null,null,null,""]
[null,null,null,null,null,null,null,null,null,""]
[null,null,null,null,null,null,null,null,null,""]
[null,null,null,null,null,null,null,null,null,""]
[null,null,null,null,null,null,null,null,null,""]
[null,null,null,null,null,null,null,null,null,""]
[null,null,null,null,null,null,null,null,null,""]
[null,null,null,null,null,null,null,null,null,""]
[null,null,null,null,null,null,null,null,null,""]
[null,null,null,null,null,null,null,null,null,""]
[null,null,null,null,null,null,null,null,null,""]
[null,null,null,null,null,null,null,null,null,{"$f":"IF(I450=\"\",\"\",DATEDIF(I450,$J$1,\"Y\"))","v":""}]
[null,null,null,null,null,null,null,null,null,""]
[null,null,null,null,null,null,null,null,null,""]
[null,null,null,null,null,null,null,null,null,""]
[null,null,null,null,null,null,null,null,null,""]
[null,null,null,null,null,null,null,null,null,""]
[null,null,null,null,null,null,null,null,null,""]
[null,null,null,null,null,null,null,null,null,""]
[null,null,null,null,null,null,null,null,null,""]
[null,null,null,null,null,null,null,null,null,""]
[null,null,null,null,null,null,null,null,null,""]
[null,null,null,null,null,null,null,null,null,""]
[null,null,null,null,null,null,null,null,null,""]
[null,null,null,null,null,null,null,null,null,""]
[null,null,null,null,null,null,null,null,null,""]
[null,null,null,null,null,null,null,null,null,""]
[null,null,null,null,null,null,null,null,null,""]
[null,null,null,null,null,null,null,null,null,""]
[null,null,null,null,null,null,null,null,null,""]
[null,null,null,null,null,null,null,null,null,""]
[null,null,null,null,null,null,null,null,null,""]
[null,null,null,null,null,null,null,null,null,""]
[null,null,null,null,null,null,null,null,null,""]
[null,null,null,null,null,null,null,null,null,""]
[null,null,null,null,null,null,null,null,null,""]
[null,null,null,null,null,null,null,null,null,""]
[null,null,null,null,null,null,null,null,null,""]
[null,null,null,null,null,null,null,null,null,""]
[null,null,null,null,null,null,null,null,null,""]
[null,null,null,null,null,null,null,null,null,""]
[null,null,null,null,null,null,null,null,null,""]
[null,null,null,null,null,null,null,null,null,""]
[null,null,null,null,null,null,null,null,null,""]
[null,null,null,null,null,null,null,null,null,""]
[null,null,null,null,null,null,null,null,null,""]
[null,null,null,null,null,null,null,null,null,""]
[null,null,null,null,null,null,null,null,null,""]
[null,null,null,null,null,null,null,null,null,""]
[null,null,null,null,null,null,null,null,null,""]
[null,null,null,null,null,null,null,null,null,""]
[null,null,null,null,null,null,null,null,null,""]
[null,null,null,null,null,null,null,null,null,""]
[null,null,null,null,null,null,null,null,null,""]
[null,null,null,null,null,null,null,null,null,""]
[null,null,null,null,null,null,null,null,null,""]
[null,null,null,null,null,null,null,null,null,""]
[null,null,null,null,null,null,null,null,null,""]
[null,null,null,null,null,null,null,null,null,""]
[null,null,null,null,null,null,null,null,null,""]
[null,null,null,null,null,null,null,null,null,""]
[null,null,null,null,null,null,null,null,null,""]
[null,null,null,null,null,null,null,null,null,""]
[null,null,null,null,null,null,null,null,null,""]
[null,null,null,null,null,null,null,null,null,""]
[null,null,null,null,null,null,null,null,null,""]
[null,null,null,null,null,null,null,null,null,""]
[null,null,null,null,null,null,null,null,null,""]
[null,null,null,null,null,null,null,null,null,""]
[null,null,null,null,null,null,null,null,null,""]
[null,null,null,null,null,null,null,null,null,""]
[null,null,null,null,null,null,null,null,null,""]
[null,null,null,null,null,null,null,null,null,""]
[null,null,null,null,null,null,null,null,null,""]
[null,null,null,null,null,null,null,null,null,""]
[null,null,null,null,null,null,null,null,null,{"$f":"IF(I514=\"\",\"\",DATEDIF(I514,$J$1,\"Y\"))","v":""}]
[null,null,null,null,null,null,null,null,null,""]
[null,null,null,null,null,null,null,null,null,""]
[null,null,null,null,null,null,null,null,null,""]
[null,null,null,null,null,null,null,null,null,""]
[null,null,null,null,null,null,null,null,null,""]
[null,null,null,null,null,null,null,null,null,""]
[null,null,null,null,null,null,null,null,null,""]
[null,null,null,null,null,null,null,null,null,""]
[null,null,null,null,null,null,null,null,null,""]
[null,null,null,null,null,null,null,null,null,""]
[null,null,null,null,null,null,null,null,null,""]
[null,null,null,null,null,null,null,null,null,""]
[null,null,null,null,null,null,null,null,null,""]
[null,null,null,null,null,null,null,null,null,""]
[null,null,null,null,null,null,null,null,null,""]
[null,null,null,null,null,null,null,null,null,""]
[null,null,null,null,null,null,null,null,null,""]
[null,null,null,null,null,null,null,null,null,""]
[null,null,null,null,null,null,null,null,null,""]
[null,null,null,null,null,null,null,null,null,""]
[null,null,null,null,null,null,null,null,null,""]
[null,null,null,null,null,null,null,null,null,""]
[null,null,null,null,null,null,null,null,null,""]
[null,null,null,null,null,null,null,null,null,""]
[null,null,null,null,null,null,null,null,null,""]
[null,null,null,null,null,null,null,null,null,""]
[null,null,null,null,null,null,null,null,null,""]
[null,null,null,null,null,null,null,null,null,""]
[null,null,null,null,null,null,null,null,null,""]
[null,null,null,null,null,null,null,null,null,""]
[null,null,null,null,null,null,null,null,null,""]
[null,null,null,null,null,null,null,null,null,""]
[null,null,null,null,null,null,null,null,null,""]
[null,null,null,null,null,null,null,null,null,""]
[null,null,null,null,null,null,null,null,null,""]
[null,null,null,null,null,null,null,null,null,""]
[null,null,null,null,null,null,null,null,null,""]
[null,null,null,null,null,null,null,null,null,""]
[null,null,null,null,null,null,null,null,null,""]
[null,null,null,null,null,null,null,null,null,""]
[null,null,null,null,null,null,null,null,null,""]
[null,null,null,null,null,null,null,null,null,""]
[null,null,null,null,null,null,null,null,null,""]
[null,null,null,null,null,null,null,null,null,""]
[null,null,null,null,null,null,null,null,null,""]
[null,null,null,null,null,null,null,null,null,""]
[null,null,null,null,null,null,null,null,null,""]
[null,null,null,null,null,null,null,null,null,""]
[null,null,null,null,null,null,null,null,null,""]
[null,null,null,null,null,null,null,null,null,""]
[null,null,null,null,null,null,null,null,null,""]
[null,null,null,null,null,null,null,null,null,""]
[null,null,null,null,null,null,null,null,null,""]
[null,null,null,null,null,null,null,null,null,""]
[null,null,null,null,null,null,null,null,null,""]
[null,null,null,null,null,null,null,null,null,""]
[null,null,null,null,null,null,null,null,null,""]
[null,null,null,null,null,null,null,null,null,""]
[null,null,null,null,null,null,null,null,null,""]
[null,null,null,null,null,null,null,null,null,""]
[null,null,null,null,null,null,null,null,null,""]
[null,null,null,null,null,null,null,null,null,""]
[null,null,null,null,null,null,null,null,null,""]
[null,null,null,null,null,null,null,null,null,{"$f":"IF(I578=\"\",\"\",DATEDIF(I578,$J$1,\"Y\"))","v":""}]
[null,null,null,null,null,null,null,null,null,""]
[null,null,null,null,null,null,null,null,null,""]
[null,null,null,null,null,null,null,null,null,""]
[null,null,null,null,null,null,null,null,null,""]
[null,null,null,null,null,null,null,null,null,""]
[null,null,null,null,null,null,null,null,null,""]
[null,null,null,null,null,null,null,null,null,""]
[null,null,null,null,null,null,null,null,null,""]
[null,null,null,null,null,null,null,null,null,""]
[null,null,null,null,null,null,null,null,null,""]
[null,null,null,null,null,null,null,null,null,""]
[null,null,null,null,null,null,null,null,null,""]
[null,null,null,null,null,null,null,null,null,""]
[null,null,null,null,null,null,null,null,null,""]
[null,null,null,null,null,null,null,null,null,""]
[null,null,null,null,null,null,null,null,null,""]
[null,null,null,null,null,null,null,null,null,""]
[null,null,null,null,null,null,null,null,null,""]
[null,null,null,null,null,null,null,null,null,""]
[null,null,null,null,null,null,null,null,null,""]
[null,null,null,null,null,null,null,null,null,""]
[null,null,null,null,null,null,null,null,null,""]
[null,null,null,null,null,null,null,null,null,""]
[null,null,null,null,null,null,null,null,null,""]
[null,null,null,null,null,null,null,null,null,""]
[null,null,null,null,null,null,null,null,null,""]
[null,null,null,null,null,null,null,null,null,""]
[null,null,null,null,null,null,null,null,null,""]
[null,null,null,null,null,null,null,null,null,""]
[null,null,null,null,null,null,null,null,null,""]
[null,null,null,null,null,null,null,null,null,""]
[null,null,null,null,null,null,null,null,null,""]
[null,null,null,null,null,null,null,null,null,""]
[null,null,null,null,null,null,null,null,null,""]
[null,null,null,null,null,null,null,null,null,""]
[null,null,null,null,null,null,null,null,null,""]
[null,null,null,null,null,null,null,null,null,""]
[null,null,null,null,null,null,null,null,null,""]
[null,null,null,null,null,null,null,null,null,""]
[null,null,null,null,null,null,null,null,null,""]
[null,null,null,null,null,null,null,null,null,""]
[null,null,null,null,null,null,null,null,null,""]
[null,null,null,null,null,null,null,null,null,""]
[null,null,null,null,null,null,null,null,null,""]
[null,null,null,null,null,null,null,null,null,""]
[null,null,null,null,null,null,null,null,null,""]
[null,null,null,null,null,null,null,null,null,""]
[null,null,null,null,null,null,null,null,null,""]
[null,null,null,null,null,null,null,null,null,""]
[null,null,null,null,null,null,null,null,null,""]
[null,null,null,null,null,null,null,null,null,""]
[null,null,null,null,null,null,null,null,null,""]
[null,null,null,null,null,null,null,null,null,""]
[null,null,null,null,null,null,null,null,null,""]
[null,null,null,null,null,null,null,null,null,""]
[null,null,null,null,null,null,null,null,null,""]
[null,null,null,null,null,null,null,null,null,""]
[null,null,null,null,null,null,null,null,null,""]
[null,null,null,null,null,null,null,null,null,""]
[null,null,null,null,null,null,null,null,null,""]
[null,null,null,null,null,null,null,null,null,""]
[null,null,null,null,null,null,null,null,null,""]
[null,null,null,null,null,null,null,null,null,""]
[null,null,null,null,null,null,null,null,null,{"$f":"IF(I642=\"\",\"\",DATEDIF(I642,$J$1,\"Y\"))","v":""}]
[null,null,null,null,null,null,null,null,null,""]
[null,null,null,null,null,null,null,null,null,""]
[null,null,null,null,null,null,null,null,null,""]
[null,null,null,null,null,null,null,null,null,""]
[null,null,null,null,null,null,null,null,null,""]
[null,null,null,null,null,null,null,null,null,""]
[null,null,null,null,null,null,null,null,null,""]
[null,null,null,null,null,null,null,null,null,""]
[null,null,null,null,null,null,null,null,null,""]
[null,null,null,null,null,null,null,null,null,""]
[null,null,null,null,null,null,null,null,null,""]
[null,null,null,null,null,null,null,null,null,""]
[null,null,null,null,null,null,null,null,null,""]
[null,null,null,null,null,null,null,null,null,""]
[null,null,null,null,null,null,null,null,null,""]
[null,null,null,null,null,null,null,null,null,""]
[null,null,null,null,null,null,null,null,null,""]
[null,null,null,null,null,null,null,null,null,""]
[null,null,null,null,null,null,null,null,null,""]
[null,null,null,null,null,null,null,null,null,""]
[null,null,null,null,null,null,null,null,null,""]
[null,null,null,null,null,null,null,null,null,""]
[null,null,null,null,null,null,null,null,null,""]
[null,null,null,null,null,null,null,null,null,""]
[null,null,null,null,null,null,null,null,null,""]
[null,null,null,null,null,null,null,null,null,""]
[null,null,null,null,null,null,null,null,null,""]
[null,null,null,null,null,null,null,null,null,""]
[null,null,null,null,null,null,null,null,null,""]
[null,null,null,null,null,null,null,null,null,""]
[null,null,null,null,null,null,null,null,null,""]
[null,null,null,null,null,null,null,null,null,""]
[null,null,null,null,null,null,null,null,null,""]
[null,null,null,null,null,null,null,null,null,""]
[null,null,null,null,null,null,null,null,null,""]
[null,null,null,null,null,null,null,null,null,""]
[null,null,null,null,null,null,null,null,null,""]
[null,null,null,null,null,null,null,null,null,""]
[null,null,null,null,null,null,null,null,null,""]
[null,null,null,null,null,null,null,null,null,""]
[null,null,null,null,null,null,null,null,null,""]
[null,null,null,null,null,null,null,null,null,""]
[null,null,null,null,null,null,null,null,null,""]
[null,null,null,null,null,null,null,null,null,""]
[null,null,null,null,null,null,null,null,null,""]
[null,null,null,null,null,null,null,null,null,""]
[null,null,null,null,null,null,null,null,null,""]
[null,null,null,null,null,null,null,null,null,""]
[null,null,null,null,null,null,null,null,null,""]
[null,null,null,null,null,null,null,null,null,""]
[null,null,null,null,null,null,null,null,null,""]
[null,null,null,null,null,null,null,null,null,""]
[null,null,null,null,null,null,null,null,null,""]
[null,null,null,null,null,null,null,null,null,""]
[null,null,null,null,null,null,null,null,null,""]
[null,null,null,null,null,null,null,null,null,""]
[null,null,null,null,null,null,null,null,null,""]
[null,null,null,null,null,null,null,null,null,""]
[null,null,null,null,null,null,null,null,null,""]
[null,null,null,null,null,null,null,null,null,""]
[null,null,null,null,null,null,null,null,null,""]
[null,null,null,null,null,null,null,null,null,""]
[null,null,null,null,null,null,null,null,null,""]
[null,null,null,null,null,null,null,null,null,{"$f":"IF(I706=\"\",\"\",DATEDIF(I706,$J$1,\"Y\"))","v":""}]
[null,null,null,null,null,null,null,null,null,""]
[null,null,null,null,null,null,null,null,null,""]
[null,null,null,null,null,null,null,null,null,""]
[null,null,null,null,null,null,null,null,null,""]
[null,null,null,null,null,null,null,null,null,""]
[null,null,null,null,null,null,null,null,null,""]
[null,null,null,null,null,null,null,null,null,""]
[null,null,null,null,null,null,null,null,null,""]
[null,null,null,null,null,null,null,null,null,""]
[null,null,null,null,null,null,null,null,null,""]
[null,null,null,null,null,null,null,null,null,""]
[null,null,null,null,null,null,null,null,null,""]
[null,null,null,null,null,null,null,null,null,""]
[null,null,null,null,null,null,null,null,null,""]
[null,null,null,null,null,null,null,null,null,""]
[null,null,null,null,null,null,null,null,null,""]
[null,null,null,null,null,null,null,null,null,""]
[null,null,null,null,null,null,null,null,null,""]
[null,null,null,null,null,null,null,null,null,""]
[null,null,null,null,null,null,null,null,null,""]
[null,null,null,null,null,null,null,null,null,""]
[null,null,null,null,null,null,null,null,null,""]
[null,null,null,null,null,null,null,null,null,""]
[null,null,null,null,null,null,null,null,null,""]
[null,null,null,null,null,null,null,null,null,""]
[null,null,null,null,null,null,null,null,null,""]
[null,null,null,null,null,null,null,null,null,""]
[null,null,null,null,null,null,null,null,null,""]
[null,null,null,null,null,null,null,null,null,""]
[null,null,null,null,null,null,null,null,null,""]
[null,null,null,null,null,null,null,null,null,""]
[null,null,null,null,null,null,null,null,null,""]
[null,null,null,null,null,null,null,null,null,""]
[null,null,null,null,null,null,null,null,null,""]
[null,null,null,null,null,null,null,null,null,""]
[null,null,null,null,null,null,null,null,null,""]
[null,null,null,null,null,null,null,null,null,""]
[null,null,null,null,null,null,null,null,null,""]
[null,null,null,null,null,null,null,null,null,""]
[null,null,null,null,null,null,null,null,null,""]
[null,null,null,null,null,null,null,null,null,""]
[null,null,null,null,null,null,null,null,null,""]
[null,null,null,null,null,null,null,null,null,""]
[null,null,null,null,null,null,null,null,null,""]
[null,null,null,null,null,null,null,null,null,""]
[null,null,null,null,null,null,null,null,null,""]
[null,null,null,null,null,null,null,null,null,""]
[null,null,null,null,null,null,null,null,null,""]
[null,null,null,null,null,null,null,null,null,""]
[null,null,null,null,null,null,null,null,null,""]
[null,null,null,null,null,null,null,null,null,""]
[null,null,null,null,null,null,null,null,null,""]
[null,null,null,null,null,null,null,null,null,""]
[null,null,null,null,null,null,null,null,null,""]
[null,null,null,null,null,null,null,null,null,""]
[null,null,null,null,null,null,null,null,null,""]
[null,null,null,null,null,null,null,null,null,""]
[null,null,null,null,null,null,null,null,null,""]
[null,null,null,null,null,null,null,null,null,""]
[null,null,null,null,null,null,null,null,null,""]
[null,null,null,null,null,null,null,null,null,""]
[null,null,null,null,null,null,null,null,null,""]
[null,null,null,null,null,null,null,null,null,""]
[null,null,null,null,null,null,null,null,null,{"$f":"IF(I770=\"\",\"\",DATEDIF(I770,$J$1,\"Y\"))","v":""}]
[null,null,null,null,null,null,null,null,null,""]
[null,null,null,null,null,null,null,null,null,""]
[null,null,null,null,null,null,null,null,null,""]
[null,null,null,null,null,null,null,null,null,""]
[null,null,null,null,null,null,null,null,null,""]
[null,null,null,null,null,null,null,null,null,""]
[null,null,null,null,null,null,null,null,null,""]
[null,null,null,null,null,null,null,null,null,""]
[null,null,null,null,null,null,null,null,null,""]
[null,null,null,null,null,null,null,null,null,""]
[null,null,null,null,null,null,null,null,null,""]
[null,null,null,null,null,null,null,null,null,""]
[null,null,null,null,null,null,null,null,null,""]
[null,null,null,null,null,null,null,null,null,""]
[null,null,null,null,null,null,null,null,null,""]
[null,null,null,null,null,null,null,null,null,""]
[null,null,null,null,null,null,null,null,null,""]
[null,null,null,null,null,null,null,null,null,""]
[null,null,null,null,null,null,null,null,null,""]
[null,null,null,null,null,null,null,null,null,""]
[null,null,null,null,null,null,null,null,null,""]
[null,null,null,null,null,null,null,null,null,""]
[null,null,null,null,null,null,null,null,null,""]
[null,null,null,null,null,null,null,null,null,""]
[null,null,null,null,null,null,null,null,null,""]
[null,null,null,null,null,null,null,null,null,""]
[null,null,null,null,null,null,null,null,null,""]
[null,null,null,null,null,null,null,null,null,""]
[null,null,null,null,null,null,null,null,null,""]
[null,null,null,null,null,null,null,null,null,""]
[null,null,null,null,null,null,null,null,null,""]
[null,null,null,null,null,null,null,null,null,""]
[null,null,null,null,null,null,null,null,null,""]
[null,null,null,null,null,null,null,null,null,""]
[null,null,null,null,null,null,null,null,null,""]
[null,null,null,null,null,null,null,null,null,""]
[null,null,null,null,null,null,null,null,null,""]
[null,null,null,null,null,null,null,null,null,""]
[null,null,null,null,null,null,null,null,null,""]
[null,null,null,null,null,null,null,null,null,""]
[null,null,null,null,null,null,null,null,null,""]
[null,null,null,null,null,null,null,null,null,""]
[null,null,null,null,null,null,null,null,null,""]
[null,null,null,null,null,null,null,null,null,""]
[null,null,null,null,null,null,null,null,null,""]
[null,null,null,null,null,null,null,null,null,""]
[null,null,null,null,null,null,null,null,null,""]
[null,null,null,null,null,null,null,null,null,""]
[null,null,null,null,null,null,null,null,null,""]
[null,null,null,null,null,null,null,null,null,""]
[null,null,null,null,null,null,null,null,null,""]
[null,null,null,null,null,null,null,null,null,""]
[null,null,null,null,null,null,null,null,null,""]
[null,null,null,null,null,null,null,null,null,""]
[null,null,null,null,null,null,null,null,null,""]
[null,null,null,null,null,null,null,null,null,""]
[null,null,null,null,null,null,null,null,null,""]
[null,null,null,null,null,null,null,null,null,""]
[null,null,null,null,null,null,null,null,null,""]
[null,null,null,null,null,null,null,null,null,""]
[null,null,null,null,null,null,null,null,null,""]
[null,null,null,null,null,null,null,null,null,""]
[null,null,null,null,null,null,null,null,null,""]
[null,null,null,null,null,null,null,null,null,{"$f":"IF(I834=\"\",\"\",DATEDIF(I834,$J$1,\"Y\"))","v":""}]
[null,null,null,null,null,null,null,null,null,""]
[null,null,null,null,null,null,null,null,null,""]
[null,null,null,null,null,null,null,null,null,""]
[null,null,null,null,null,null,null,null,null,""]
[null,null,null,null,null,null,null,null,null,""]
[null,null,null,null,null,null,null,null,null,""]
[null,null,null,null,null,null,null,null,null,""]
[null,null,null,null,null,null,null,null,null,""]
[null,null,null,null,null,null,null,null,null,""]
[null,null,null,null,null,null,null,null,null,""]
[null,null,null,null,null,null,null,null,null,""]
[null,null,null,null,null,null,null,null,null,""]
[null,null,null,null,null,null,null,null,null,""]
[null,null,null,null,null,null,null,null,null,""]
[null,null,null,null,null,null,null,null,null,""]
[null,null,null,null,null,null,null,null,null,""]
[null,null,null,null,null,null,null,null,null,""]
[null,null,null,null,null,null,null,null,null,""]
[null,null,null,null,null,null,null,null,null,""]
[null,null,null,null,null,null,null,null,null,""]
[null,null,null,null,null,null,null,null,null,""]
[null,null,null,null,null,null,null,null,null,""]
[null,null,null,null,null,null,null,null,null,""]
[null,null,null,null,null,null,null,null,null,""]
[null,null,null,null,null,null,null,null,null,""]
[null,null,null,null,null,null,null,null,null,""]
[null,null,null,null,null,null,null,null,null,""]
[null,null,null,null,null,null,null,null,null,""]
[null,null,null,null,null,null,null,null,null,""]
[null,null,null,null,null,null,null,null,null,""]
[null,null,null,null,null,null,null,null,null,""]
[null,null,null,null,null,null,null,null,null,""]
[null,null,null,null,null,null,null,null,null,""]
[null,null,null,null,null,null,null,null,null,""]
[null,null,null,null,null,null,null,null,null,""]
[null,null,null,null,null,null,null,null,null,""]
[null,null,null,null,null,null,null,null,null,""]
[null,null,null,null,null,null,null,null,null,""]
[null,null,null,null,null,null,null,null,null,""]
[null,null,null,null,null,null,null,null,null,""]
[null,null,null,null,null,null,null,null,null,""]
[null,null,null,null,null,null,null,null,null,""]
[null,null,null,null,null,null,null,null,null,""]
[null,null,null,null,null,null,null,null,null,""]
[null,null,null,null,null,null,null,null,null,""]
[null,null,null,null,null,null,null,null,null,""]
[null,null,null,null,null,null,null,null,null,""]
[null,null,null,null,null,null,null,null,null,""]
[null,null,null,null,null,null,null,null,null,""]
[null,null,null,null,null,null,null,null,null,""]
[null,null,null,null,null,null,null,null,null,""]
[null,null,null,null,null,null,null,null,null,""]
[null,null,null,null,null,null,null,null,null,""]
[null,null,null,null,null,null,null,null,null,""]
[null,null,null,null,null,null,null,null,null,""]
[null,null,null,null,null,null,null,null,null,""]
[null,null,null,null,null,null,null,null,null,""]
[null,null,null,null,null,null,null,null,null,""]
[null,null,null,null,null,null,null,null,null,""]
[null,null,null,null,null,null,null,null,null,""]
[null,null,null,null,null,null,null,null,null,""]
[null,null,null,null,null,null,null,null,null,""]
[null,null,null,null,null,null,null,null,null,""]
[null,null,null,null,null,null,null,null,null,{"$f":"IF(I898=\"\",\"\",DATEDIF(I898,$J$1,\"Y\"))","v":""}]
[null,null,null,null,null,null,null,null,null,""]
[null,null,null,null,null,null,null,null,null,""]
[null,null,null,null,null,null,null,null,null,""]
[null,null,null,null,null,null,null,null,null,""]
[null,null,null,null,null,null,null,null,null,""]
[null,null,null,null,null,null,null,null,null,""]
[null,null,null,null,null,null,null,null,null,""]
[null,null,null,null,null,null,null,null,null,""]
[null,null,null,null,null,null,null,null,null,""]
[null,null,null,null,null,null,null,null,null,""]
[null,null,null,null,null,null,null,null,null,""]
[null,null,null,null,null,null,null,null,null,""]
[null,null,null,null,null,null,null,null,null,""]
[null,null,null,null,null,null,null,null,null,""]
[null,null,null,null,null,null,null,null,null,""]
[null,null,null,null,null,null,null,null,null,""]
[null,null,null,null,null,null,null,null,null,""]
[null,null,null,null,null,null,null,null,null,""]
[null,null,null,null,null,null,null,null,null,""]
[null,null,null,null,null,null,null,null,null,""]
[null,null,null,null,null,null,null,null,null,""]
[null,null,null,null,null,null,null,null,null,""]
[null,null,null,null,null,null,null,null,null,""]
[null,null,null,null,null,null,null,null,null,""]
[null,null,null,null,null,null,null,null,null,""]
[null,null,null,null,null,null,null,null,null,""]
[null,null,null,null,null,null,null,null,null,""]
[null,null,null,null,null,null,null,null,null,""]
[null,null,null,null,null,null,null,null,null,""]
[null,null,null,null,null,null,null,null,null,""]
[null,null,null,null,null,null,null,null,null,""]
[null,null,null,null,null,null,null,null,null,""]
[null,null,null,null,null,null,null,null,null,""]
[null,null,null,null,null,null,null,null,null,""]
[null,null,null,null,null,null,null,null,null,""]
[null,null,null,null,null,null,null,null,null,""]
[null,null,null,null,null,null,null,null,null,""]
[null,null,null,null,null,null,null,null,null,""]
[null,null,null,null,null,null,null,null,null,""]
[null,null,null,null,null,null,null,null,null,""]
[null,null,null,null,null,null,null,null,null,""]
[null,null,null,null,null,null,null,null,null,""]
[null,null,null,null,null,null,null,null,null,""]
[null,null,null,null,null,null,null,null,null,""]
[null,null,null,null,null,null,null,null,null,""]
[null,null,null,null,null,null,null,null,null,""]
[null,null,null,null,null,null,null,null,null,""]
[null,null,null,null,null,null,null,null,null,""]
[null,null,null,null,null,null,null,null,null,""]
[null,null,null,null,null,null,null,null,null,""]
[null,null,null,null,null,null,null,null,null,""]
[null,null,null,null,null,null,null,null,null,""]
[null,null,null,null,null,null,null,null,null,""]
[null,null,null,null,null,null,null,null,null,""]
[null,null,null,null,null,null,null,null,null,""]
[null,null,null,null,null,null,null,null,null,""]
[null,null,null,null,null,null,null,null,null,""]
[null,null,null,null,null,null,null,null,null,""]
[null,null,null,null,null,null,null,null,null,""]
[null,null,null,null,null,null,null,null,null,""]
[null,null,null,null,null,null,null,null,null,""]
[null,null,null,null,null,null,null,null,null,""]
[null,null,null,null,null,null,null,null,null,""]
[null,null,null,null,null,null,null,null,null,{"$f":"IF(I962=\"\",\"\",DATEDIF(I962,$J$1,\"Y\"))","v":""}]
[null,null,null,null,null,null,null,null,null,""]
[null,null,null,null,null,null,null,null,null,""]
[null,null,null,null,null,null,null,null,null,""]
[null,null,null,null,null,null,null,null,null,""]
[null,null,null,null,null,null,null,null,null,""]
[null,null,null,null,null,null,null,null,null,""]
[null,null,null,null,null,null,null,null,null,""]
[null,null,null,null,null,null,null,null,null,""]
[null,null,null,null,null,null,null,null,null,""]
[null,null,null,null,null,null,null,null,null,""]
[null,null,null,null,null,null,null,null,null,""]
[null,null,null,null,null,null,null,null,null,""]
[null,null,null,null,null,null,null,null,null,""]
[null,null,null,null,null,null,null,null,null,""]
[null,null,null,null,null,null,null,null,null,""]
[null,null,null,null,null,null,null,null,null,""]
[null,null,null,null,null,null,null,null,null,""]
[null,null,null,null,null,null,null,null,null,""]
[null,null,null,null,null,null,null,null,null,""]
[null,null,null,null,null,null,null,null,null,""]
[null,null,null,null,null,null,null,null,null,""]
[null,null,null,null,null,null,null,null,null,""]
[null,null,null,null,null,null,null,null,null,""]
[null,null,null,null,null,null,null,null,null,""]
[null,null,null,null,null,null,null,null,null,""]
[null,null,null,null,null,null,null,null,null,""]
[null,null,null,null,null,null,null,null,null,""]
[null,null,null,null,null,null,null,null,null,""]
[null,null,null,null,null,null,null,null,null,""]
[null,null,null,null,null,null,null,null,null,""]
[null,null,null,null,null,null,null,null,null,""]
[null,null,null,null,null,null,null,null,null,""]
[null,null,null,null,null,null,null,null,null,""]
[null,null,null,null,null,null,null,null,null,""]
[null,null,null,null,null,null,null,null,null,""]
[null,null,null,null,null,null,null,null,null,""]
[null,null,null,null,null,null,null,null,null,""]
[null,null,null,null,null,null,null,null,null,""]
[null,null,null,null,null,null,null,null,null,""]
[null,null,null,null,null,null,null,null,null,""]
[null,null,null,null,null,null,null,null,null,""]
[null,null,null,null,null,null,null,null,null,""]
[null,null,null,null,null,null,null,null,null,""]
[null,null,null,null,null,null,null,null,null,""]
[null,null,null,null,null,null,null,null,null,""]
[null,null,null,null,null,null,null,null,null,""]
[null,null,null,null,null,null,null,null,null,""]
[null,null,null,null,null,null,null,null,null,""]
[null,null,null,null,null,null,null,null,null,""]
[null,null,null,null,null,null,null,null,null,""]
[null,null,null,null,null,null,null,null,null,""]
[null,null,null,null,null,null,null,null,null,""]
[null,null,null,null,null,null,null,null,null,""]
[null,null,null,null,null,null,null,null,null,""]
[null,null,null,null,null,null,null,null,null,""]
[null,null,null,null,null,null,null,null,null,""]
[null,null,null,null,null,null,null,null,null,""]
[null,null,null,null,null,null,null,null,null,""]
[null,null,null,null,null,null,null,null,null,""]
[null,null,null,null,null,null,null,null,null,""]
[null,null,null,null,null,null,null,null,null,""]
[null,null,null,null,null,null,null,null,null,""]
[null,null,null,null,null,null,null,null,null,""]
[null,null,null,null,null,null,null,null,null,{"$f":"IF(I1026=\"\",\"\",DATEDIF(I1026,$J$1,\"Y\"))","v":""}]
[null,null,null,null,null,null,null,null,null,""]
[null,null,null,null,null,null,null,null,null,""]
[null,null,null,null,null,null,null,null,null,""]
[null,null,null,null,null,null,null,null,null,""]
[null,null,null,null,null,null,null,null,null,""]
[null,null,null,null,null,null,null,null,null,""]
[null,null,null,null,null,null,null,null,null,""]
[null,null,null,null,null,null,null,null,null,""]
[null,null,null,null,null,null,null,null,null,""]
[null,null,null,null,null,null,null,null,null,""]
[null,null,null,null,null,null,null,null,null,""]
[null,null,null,null,null,null,null,null,null,""]
[null,null,null,null,null,null,null,null,null,""]
[null,null,null,null,null,null,null,null,null,""]
[null,null,null,null,null,null,null,null,null,""]
[null,null,null,null,null,null,null,null,null,""]
[null,null,null,null,null,null,null,null,null,""]
[null,null,null,null,null,null,null,null,null,""]
[null,null,null,null,null,null,null,null,null,""]
[null,null,null,null,null,null,null,null,null,""]
[null,null,null,null,null,null,null,null,null,""]
[null,null,null,null,null,null,null,null,null,""]
[null,null,null,null,null,null,null,null,null,""]
[null,null,null,null,null,null,null,null,null,""]
[null,null,null,null,null,null,null,null,null,""]
[null,null,null,null,null,null,null,null,null,""]
[null,null,null,null,null,null,null,null,null,""]
[null,null,null,null,null,null,null,null,null,""]
[null,null,null,null,null,null,null,null,null,""]
[null,null,null,null,null,null,null,null,null,""]
[null,null,null,null,null,null,null,null,null,""]
[null,null,null,null,null,null,null,null,null,""]
[null,null,null,null,null,null,null,null,null,""]
[null,null,null,null,null,null,null,null,null,""]
[null,null,null,null,null,null,null,null,null,""]
[null,null,null,null,null,null,null,null,null,""]
[null,null,null,null,null,null,null,null,null,""]
[null,null,null,null,null,null,null,null,null,""]
[null,null,null,null,null,null,null,null,null,""]
[null,null,null,null,null,null,null,null,null,""]
[null,null,null,null,null,null,null,null,null,""]
[null,null,null,null,null,null,null,null,null,""]
[null,null,null,null,null,null,null,null,null,""]
[null,null,null,null,null,null,null,null,null,""]
[null,null,null,null,null,null,null,null,null,""]
[null,null,null,null,null,null,null,null,null,""]
[null,null,null,null,null,null,null,null,null,""]
[null,null,null,null,null,null,null,null,null,""]
[null,null,null,null,null,null,null,null,null,""]
[null,null,null,null,null,null,null,null,null,""]
[null,null,null,null,null,null,null,null,null,""]
[null,null,null,null,null,null,null,null,null,""]
[null,null,null,null,null,null,null,null,null,""]
[null,null,null,null,null,null,null,null,null,""]
[null,null,null,null,null,null,null,null,null,""]
[null,null,null,null,null,null,null,null,null,""]
[null,null,null,null,null,null,null,null,null,""]
[null,null,null,null,null,null,null,null,null,""]
[null,null,null,null,null,null,null,null,null,""]
[null,null,null,null,null,null,null,null,null,""]
[null,null,null,null,null,null,null,null,null,""]
[null,null,null,null,null,null,null,null,null,""]
[null,null,null,null,null,null,null,null,null,""]
[null,null,null,null,null,null,null,null,null,{"$f":"IF(I1090=\"\",\"\",DATEDIF(I1090,$J$1,\"Y\"))","v":""}]
[null,null,null,null,null,null,null,null,null,""]
[null,null,null,null,null,null,null,null,null,""]
[null,null,null,null,null,null,null,null,null,""]
[null,null,null,null,null,null,null,null,null,""]
[null,null,null,null,null,null,null,null,null,""]
[null,null,null,null,null,null,null,null,null,""]
[null,null,null,null,null,null,null,null,null,""]
[null,null,null,null,null,null,null,null,null,""]
[null,null,null,null,null,null,null,null,null,""]
[null,null,null,null,null,null,null,null,null,""]
[null,null,null,null,null,null,null,null,null,""]
[null,null,null,null,null,null,null,null,null,""]
[null,null,null,null,null,null,null,null,null,""]
[null,null,null,null,null,null,null,null,null,""]
[null,null,null,null,null,null,null,null,null,""]
[null,null,null,null,null,null,null,null,null,""]
[null,null,null,null,null,null,null,null,null,""]
[null,null,null,null,null,null,null,null,null,""]
[null,null,null,null,null,null,null,null,null,""]
[null,null,null,null,null,null,null,null,null,""]
[null,null,null,null,null,null,null,null,null,""]
[null,null,null,null,null,null,null,null,null,""]
[null,null,null,null,null,null,null,null,null,""]
[null,null,null,null,null,null,null,null,null,""]
[null,null,null,null,null,null,null,null,null,""]
[null,null,null,null,null,null,null,null,null,""]
[null,null,null,null,null,null,null,null,null,""]
[null,null,null,null,null,null,null,null,null,""]
[null,null,null,null,null,null,null,null,null,""]
[null,null,null,null,null,null,null,null,null,""]
[null,null,null,null,null,null,null,null,null,""]
[null,null,null,null,null,null,null,null,null,""]
[null,null,null,null,null,null,null,null,null,""]
[null,null,null,null,null,null,null,null,null,""]
[null,null,null,null,null,null,null,null,null,""]
[null,null,null,null,null,null,null,null,null,""]
[null,null,null,null,null,null,null,null,null,""]
[null,null,null,null,null,null,null,null,null,""]
[null,null,null,null,null,null,null,null,null,""]
[null,null,null,null,null,null,null,null,null,""]
[null,null,null,null,null,null,null,null,null,""]
[null,null,null,null,null,null,null,null,null,""]
[null,null,null,null,null,null,null,null,null,""]
[null,null,null,null,null,null,null,null,null,""]
[null,null,null,null,null,null,null,null,null,""]
[null,null,null,null,null,null,null,null,null,""]
[null,null,null,null,null,null,null,null,null,""]
[null,null,null,null,null,null,null,null,null,""]
[null,null,null,null,null,null,null,null,null,""]
[null,null,null,null,null,null,null,null,null,""]
[null,null,null,null,null,null,null,null,null,""]
[null,null,null,null,null,null,null,null,null,""]
[null,null,null,null,null,null,null,null,null,""]
[null,null,null,null,null,null,null,null,null,""]
[null,null,null,null,null,null,null,null,null,""]
[null,null,null,null,null,null,null,null,null,""]
[null,null,null,null,null,null,null,null,null,""]
[null,null,null,null,null,null,null,null,null,""]
[null,null,null,null,null,null,null,null,null,""]
[null,null,null,null,null,null,null,null,null,""]
[null,null,null,null,null,null,null,null,null,""]
[null,null,null,null,null,null,null,null,null,""]
[null,null,null,null,null,null,null,null,null,""]
[null,null,null,null,null,null,null,null,null,{"$f":"IF(I1154=\"\",\"\",DATEDIF(I1154,$J$1,\"Y\"))","v":""}]
[null,null,null,null,null,null,null,null,null,""]
[null,null,null,null,null,null,null,null,null,""]
[null,null,null,null,null,null,null,null,null,""]
[null,null,null,null,null,null,null,null,null,""]
[null,null,null,null,null,null,null,null,null,""]
[null,null,null,null,null,null,null,null,null,""]
[null,null,null,null,null,null,null,null,null,""]
[null,null,null,null,null,null,null,null,null,""]
[null,null,null,null,null,null,null,null,null,""]
[null,null,null,null,null,null,null,null,null,""]
[null,null,null,null,null,null,null,null,null,""]
[null,null,null,null,null,null,null,null,null,""]
[null,null,null,null,null,null,null,null,null,""]
[null,null,null,null,null,null,null,null,null,""]
[null,null,null,null,null,null,null,null,null,""]
[null,null,null,null,null,null,null,null,null,""]
[null,null,null,null,null,null,null,null,null,""]
[null,null,null,null,null,null,null,null,null,""]
[null,null,null,null,null,null,null,null,null,""]
[null,null,null,null,null,null,null,null,null,""]
[null,null,null,null,null,null,null,null,null,""]
[null,null,null,null,null,null,null,null,null,""]
[null,null,null,null,null,null,null,null,null,""]
[null,null,null,null,null,null,null,null,null,""]
[null,null,null,null,null,null,null,null,null,""]
[null,null,null,null,null,null,null,null,null,""]
[null,null,null,null,null,null,null,null,null,""]
[null,null,null,null,null,null,null,null,null,""]
[null,null,null,null,null,null,null,null,null,""]
[null,null,null,null,null,null,null,null,null,""]
[null,null,null,null,null,null,null,null,null,""]
[null,null,null,null,null,null,null,null,null,""]
[null,null,null,null,null,null,null,null,null,""]
[null,null,null,null,null,null,null,null,null,""]
[null,null,null,null,null,null,null,null,null,""]
[null,null,null,null,null,null,null,null,null,""]
[null,null,null,null,null,null,null,null,null,""]
[null,null,null,null,null,null,null,null,null,""]
[null,null,null,null,null,null,null,null,null,""]
[null,null,null,null,null,null,null,null,null,""]
[null,null,null,null,null,null,null,null,null,""]
[null,null,null,null,null,null,null,null,null,""]
[null,null,null,null,null,null,null,null,null,""]
[null,null,null,null,null,null,null,null,null,""]
[null,null,null,null,null,null,null,null,null,""]
[null,null,null,null,null,null,null,null,null,""]
[null,null,null,null,null,null,null,null,null,""]
[null,null,null,null,null,null,null,null,null,""]
[null,null,null,null,null,null,null,null,null,""]
[null,null,null,null,null,null,null,null,null,""]
[null,null,null,null,null,null,null,null,null,""]
[null,null,null,null,null,null,null,null,null,""]
[null,null,null,null,null,null,null,null,null,""]
[null,null,null,null,null,null,null,null,null,""]
[null,null,null,null,null,null,null,null,null,""]
[null,null,null,null,null,null,null,null,null,""]
[null,null,null,null,null,null,null,null,null,""]
[null,null,null,null,null,null,null,null,null,""]
[null,null,null,null,null,null,null,null,null,""]
[null,null,null,null,null,null,null,null,null,""]
[null,null,null,null,null,null,null,null,null,""]
[null,null,null,null,null,null,null,null,null,""]
[null,null,null,null,null,null,null,null,null,""]
[null,null,null,null,null,null,null,null,null,{"$f":"IF(I1218=\"\",\"\",DATEDIF(I1218,$J$1,\"Y\"))","v":""}]
[null,null,null,null,null,null,null,null,null,""]
[null,null,null,null,null,null,null,null,null,""]
[null,null,null,null,null,null,null,null,null,""]
[null,null,null,null,null,null,null,null,null,""]
[null,null,null,null,null,null,null,null,null,""]
[null,null,null,null,null,null,null,null,null,""]
[null,null,null,null,null,null,null,null,null,""]
[null,null,null,null,null,null,null,null,null,""]
[null,null,null,null,null,null,null,null,null,""]
[null,null,null,null,null,null,null,null,null,""]
[null,null,null,null,null,null,null,null,null,""]
[null,null,null,null,null,null,null,null,null,""]
[null,null,null,null,null,null,null,null,null,""]
[null,null,null,null,null,null,null,null,null,""]
[null,null,null,null,null,null,null,null,null,""]
[null,null,null,null,null,null,null,null,null,""]
[null,null,null,null,null,null,null,null,null,""]
[null,null,null,null,null,null,null,null,null,""]
[null,null,null,null,null,null,null,null,null,""]
[null,null,null,null,null,null,null,null,null,""]
[null,null,null,null,null,null,null,null,null,""]
[null,null,null,null,null,null,null,null,null,""]
[null,null,null,null,null,null,null,null,null,""]
[null,null,null,null,null,null,null,null,null,""]
[null,null,null,null,null,null,null,null,null,""]
[null,null,null,null,null,null,null,null,null,""]
[null,null,null,null,null,null,null,null,null,""]
[null,null,null,null,null,null,null,null,null,""]
[null,null,null,null,null,null,null,null,null,""]
[null,null,null,null,null,null,null,null,null,""]
[null,null,null,null,null,null,null,null,null,""]
[null,null,null,null,null,null,null,null,null,""]
[null,null,null,null,null,null,null,null,null,""]
[null,null,null,null,null,null,null,null,null,""]
[null,null,null,null,null,null,null,null,null,""]
[null,null,null,null,null,null,null,null,null,""]
[null,null,null,null,null,null,null,null,null,""]
[null,null,null,null,null,null,null,null,null,""]
[null,null,null,null,null,null,null,null,null,""]
[null,null,null,null,null,null,null,null,null,""]
[null,null,null,null,null,null,null,null,null,""]
[null,null,null,null,null,null,null,null,null,""]
[null,null,null,null,null,null,null,null,null,""]
[null,null,null,null,null,null,null,null,null,""]
[null,null,null,null,null,null,null,null,null,""]
[null,null,null,null,null,null,null,null,null,""]
[null,null,null,null,null,null,null,null,null,""]
[null,null,null,null,null,null,null,null,null,""]
[null,null,null,null,null,null,null,null,null,""]
[null,null,null,null,null,null,null,null,null,""]
[null,null,null,null,null,null,null,null,null,""]
[null,null,null,null,null,null,null,null,null,""]
[null,null,null,null,null,null,null,null,null,""]
[null,null,null,null,null,null,null,null,null,""]
[null,null,null,null,null,null,null,null,null,""]
[null,null,null,null,null,null,null,null,null,""]
[null,null,null,null,null,null,null,null,null,""]
[null,null,null,null,null,null,null,null,null,""]
[null,null,null,null,null,null,null,null,null,""]
[null,null,null,null,null,null,null,null,null,""]
[null,null,null,null,null,null,null,null,null,""]
[null,null,null,null,null,null,null,null,null,""]
[null,null,null,null,null,null,null,null,null,""]
[null,null,null,null,null,null,null,null,null,{"$f":"IF(I1282=\"\",\"\",DATEDIF(I1282,$J$1,\"Y\"))","v":""}]
[null,null,null,null,null,null,null,null,null,""]
[null,null,null,null,null,null,null,null,null,""]
[null,null,null,null,null,null,null,null,null,""]
[null,null,null,null,null,null,null,null,null,""]
[null,null,null,null,null,null,null,null,null,""]
[null,null,null,null,null,null,null,null,null,""]
[null,null,null,null,null,null,null,null,null,""]
[null,null,null,null,null,null,null,null,null,""]
[null,null,null,null,null,null,null,null,null,""]
[null,null,null,null,null,null,null,null,null,""]
[null,null,null,null,null,null,null,null,null,""]
[null,null,null,null,null,null,null,null,null,""]
[null,null,null,null,null,null,null,null,null,""]
[null,null,null,null,null,null,null,null,null,""]
[null,null,null,null,null,null,null,null,null,""]
[null,null,null,null,null,null,null,null,null,""]
[null,null,null,null,null,null,null,null,null,""]
[null,null,null,null,null,null,null,null,null,""]
[null,null,null,null,null,null,null,null,null,""]
[null,null,null,null,null,null,null,null,null,""]
[null,null,null,null,null,null,null,null,null,""]
[null,null,null,null,null,null,null,null,null,""]
[null,null,null,null,null,null,null,null,null,""]
[null,null,null,null,null,null,null,null,null,""]
[null,null,null,null,null,null,null,null,null,""]
[null,null,null,null,null,null,null,null,null,""]
[null,null,null,null,null,null,null,null,null,""]
[null,null,null,null,null,null,null,null,null,""]
[null,null,null,null,null,null,null,null,null,""]
[null,null,null,null,null,null,null,null,null,""]
[null,null,null,null,null,null,null,null,null,""]
[null,null,null,null,null,null,null,null,null,""]
[null,null,null,null,null,null,null,null,null,""]
[null,null,null,null,null,null,null,null,null,""]
[null,null,null,null,null,null,null,null,null,""]
[null,null,null,null,null,null,null,null,null,""]
[null,null,null,null,null,null,null,null,null,""]
[null,null,null,null,null,null,null,null,null,""]
[null,null,null,null,null,null,null,null,null,""]
[null,null,null,null,null,null,null,null,null,""]
[null,null,null,null,null,null,null,null,null,""]
[null,null,null,null,null,null,null,null,null,""]
[null,null,null,null,null,null,null,null,null,""]
[null,null,null,null,null,null,null,null,null,""]
[null,null,null,null,null,null,null,null,null,""]
[null,null,null,null,null,null,null,null,null,""]
[null,null,null,null,null,null,null,null,null,""]
[null,null,null,null,null,null,null,null,null,""]
[null,null,null,null,null,null,null,null,null,""]
[null,null,null,null,null,null,null,null,null,""]
[null,null,null,null,null,null,null,null,null,""]
[null,null,null,null,null,null,null,null,null,""]
[null,null,null,null,null,null,null,null,null,""]
[null,null,null,null,null,null,null,null,null,""]
[null,null,null,null,null,null,null,null,null,""]
[null,null,null,null,null,null,null,null,null,""]
[null,null,null,null,null,null,null,null,null,""]
[null,null,null,null,null,null,null,null,null,""]
[null,null,null,null,null,null,null,null,null,""]
[null,null,null,null,null,null,null,null,null,""]
[null,null,null,null,null,null,null,null,null,""]
[null,null,null,null,null,null,null,null,null,""]
[null,null,null,null,null,null,null,null,null,""]
[null,null,null,null,null,null,null,null,null,{"$f":"IF(I1346=\"\",\"\",DATEDIF(I1346,$J$1,\"Y\"))","v":""}]
[null,null,null,null,null,null,null,null,null,""]
[null,null,null,null,null,null,null,null,null,""]
[null,null,null,null,null,null,null,null,null,""]
[null,null,null,null,null,null,null,null,null,""]
[null,null,null,null,null,null,null,null,null,""]
[null,null,null,null,null,null,null,null,null,""]
[null,null,null,null,null,null,null,null,null,""]
[null,null,null,null,null,null,null,null,null,""]
[null,null,null,null,null,null,null,null,null,""]
[null,null,null,null,null,null,null,null,null,""]
[null,null,null,null,null,null,null,null,null,""]
[null,null,null,null,null,null,null,null,null,""]
[null,null,null,null,null,null,null,null,null,""]
[null,null,null,null,null,null,null,null,null,""]
[null,null,null,null,null,null,null,null,null,""]
[null,null,null,null,null,null,null,null,null,""]
[null,null,null,null,null,null,null,null,null,""]
[null,null,null,null,null,null,null,null,null,""]
[null,null,null,null,null,null,null,null,null,""]
[null,null,null,null,null,null,null,null,null,""]
[null,null,null,null,null,null,null,null,null,""]
[null,null,null,null,null,null,null,null,null,""]
[null,null,null,null,null,null,null,null,null,""]
[null,null,null,null,null,null,null,null,null,""]
[null,null,null,null,null,null,null,null,null,""]
[null,null,null,null,null,null,null,null,null,""]
[null,null,null,null,null,null,null,null,null,""]
[null,null,null,null,null,null,null,null,null,""]
[null,null,null,null,null,null,null,null,null,""]
[null,null,null,null,null,null,null,null,null,""]
[null,null,null,null,null,null,null,null,null,""]
[null,null,null,null,null,null,null,null,null,""]
[null,null,null,null,null,null,null,null,null,""]
[null,null,null,null,null,null,null,null,null,""]
[null,null,null,null,null,null,null,null,null,""]
[null,null,null,null,null,null,null,null,null,""]
[null,null,null,null,null,null,null,null,null,""]
[null,null,null,null,null,null,null,null,null,""]
[null,null,null,null,null,null,null,null,null,""]
[null,null,null,null,null,null,null,null,null,""]
[null,null,null,null,null,null,null,null,null,""]
[null,null,null,null,null,null,null,null,null,""]

{"sheet":"Erhebungsbogen","index":6,"n_rows":38,"n_cols":14,"rows_kept":38,"cut":false,"hidden":false,"merged":[[37,12,37,13],[37,10,37,11],[37,1,37,9],[29,1,29,9],[29,10,29,11],[29,12,29,13],[16,8,16,9],[15,8,15,9],[14,8,14,9],[21,8,21,9],[20,8,20,9],[19,8,19,9],[18,8,18,9],[17,8,17,9],[24,6,24,7],[23,6,23,7],[22,6,22,7],[21,6,21,7],[20,6,20,7],[19,6,19,7],[19,12,19,13],[14,12,14,13],[18,12,18,13],[21,4,21,5],[1,13,3,13],[15,12,15,13],[16,12,16,13],[3,2,3,4],[3,5,3,6],[4,2,4,4],[4,5,4,6],[2,2,2,6],[10,2,10,5],[10,6,10,9],[11,2,11,3],[14,2,14,3],[13,2,13,3],[12,2,12,3],[13,6,13,7],[12,6,12,7],[11,6,11,7],[16,4,16,5],[15,4,15,5],[14,4,14,5],[13,4,13,5],[1,8,1,11],[1,2,1,7],[10,12,11,13],[17,12,17,13],[10,10,10,11],[23,12,23,13],[24,12,24,13],[0,0,0,8],[0,9,0,13],[2,8,2,10],[3,11,3,12],[4,11,4,12],[6,11,6,12],[3,7,3,8],[3,9,3,10],[4,7,4,8],[4,9,4,10],[1,0,1,1],[4,0,4,1],[16,2,16,3],[15,2,15,3],[24,2,24,3],[16,6,16,7],[15,6,15,7],[14,6,14,7],[6,0,6,1],[8,0,8,1],[12,12,12,13],[13,12,13,13],[8,2,8,4],[8,5,8,6],[8,7,8,8],[8,9,8,10],[8,11,8,12],[6,2,6,4],[6,5,6,6],[6,7,6,8],[6,9,6,10],[22,12,22,13],[35,1,35,9],[35,10,35,11],[35,12,35,13],[20,12,20,13],[21,12,21,13],[33,1,33,9],[33,10,33,11],[33,12,33,13],[31,1,31,9],[31,10,31,11],[27,10,27,11],[27,1,27,9],[25,10,25,11],[31,12,31,13],[27,12,27,13],[25,0,25,1],[25,12,25,13],[25,2,25,5],[25,6,25,9],[24,4,24,5],[23,4,23,5],[22,4,22,5],[24,8,24,9],[24,0,24,1],[20,2,20,3],[20,4,20,5],[10,0,11,1],[12,8,12,9],[11,4,11,5],[12,4,12,5],[11,8,11,9],[13,8,13,9],[19,4,19,5],[18,4,18,5],[17,4,17,5],[23,8,23,9],[22,8,22,9],[19,2,19,3],[18,2,18,3],[17,2,17,3],[18,6,18,7],[17,6,17,7],[23,2,23,3],[22,2,22,3],[21,2,21,3]]}
["Jugenderhebungsbogen Erhebungsjahr",null,null,null,null,null,null,null,null,{"$f":"Deckblatt!A4","v":2019}]
["Verein:",null,{"$f":"Deckblatt!A5","v":"(Vereinsname eintragen)"},null,null,null,null,null,{"$f":"Deckblatt!B5","v":"(Vereinsort eintragen)"},null,null,null,null,"Jugendleiter seit:"]
[null,null,"Regierungsbezirk:",null,null,null,null,{"$f":"IF(I3=\"Oberbayern\",\"1\",IF(I3=\"Niederbayern\",\"2\",IF(I3=\"Oberfranken\",\"4\",IF(I3=\"Mittelfranken\",\"5\",IF(I3=\"Unterfranken\",\"6\",IF(I3=\"Oberpfalz\",\"3\",IF(I3=\"Schwaben\",\"7\",\"\")))))))","v":"1"},{"$f":"Deckblatt!B6","v":"Oberbayern"}]
[null,null,"Name, Vorname",null,null,"Straße, Nr.",null,"PLZ,Ort",null,"Telefon",null,"Email"]
["Jugendleiter:"]
[]
["Stellvertreter:"]
[]
["Stellvertreter:"]
[]
["Gruppen/ Sachgebiete",null,"0 bis 15 Jahre",null,null,null,"16 bis 26 Jahre",null,null,null,"Summe in der Gruppe",null,"Gruppe Gesamt"]
[null,null,"Deandl",null,"Buam",null,"Deandl",null,"Buam",null,"Deandl","Buam"]
[1,"Jugendliche bis 26 Jahre",{"$f":"COUNTIFS(Deandl!$J:$J,\"x\",Deandl!$E:$E,\"<=15\")","v":0},null,{"$f":"COUNTIFS(Buam!J2:J973,\"x\",Buam!E2:E973,\"<=15\")","v":0},null,{"$f":"COUNTIFS(Deandl!$J:$J,\"x\",Deandl!$E:$E,\"<=26\",Deandl!$E:$E,\">=16\")","v":0},null,{"$f":"COUNTIFS(Buam!$J:$J,\"x\",Buam!$E:$E,\"<=26\",Buam!$E:$E,\">=16\")","v":0},null,{"$f":"C13+G13","v":0},{"$f":"E13+I13","v":0},{"$f":"K13+L13","v":0}]
[{"$f":"A13+1","v":2},"Schuhplattler/Dreherinnen",{"$f":"COUNTIFS(Deandl!$K:$K,\"x\",Deandl!$E:$E,\"<=15\")","v":0},null,{"$f":"COUNTIFS(Buam!$K:$K,\"x\",Buam!$E:$E,\"<=15\")","v":0},null,{"$f":"COUNTIFS(Deandl!$K:$K,\"x\",Deandl!$E:$E,\"<=26\",Deandl!$E:$E,\">=16\")","v":0},null,{"$f":"COUNTIFS(Buam!$K:$K,\"x\",Buam!$E:$E,\"<=26\",Buam!$E:$E,\">=16\")","v":0},null,{"$f":"C14+G14","v":0},{"$f":"E14+I14","v":0},{"$f":"K14+L14","v":0}]
[{"$f":"A14+1","v":3},"Tänzer/-innen",{"$f":"COUNTIFS(Deandl!$L:$L,\"x\",Deandl!$E:$E,\"<=15\")","v":0},null,{"$f":"COUNTIFS(Buam!$L:$L,\"x\",Buam!$E:$E,\"<=15\")","v":0},null,{"$f":"COUNTIFS(Deandl!$L:$L,\"x\",Deandl!$E:$E,\"<=26\",Deandl!$E:$E,\">=16\")","v":0},null,{"$f":"COUNTIFS(Buam!$L:$L,\"x\",Buam!$E:$E,\"<=26\",Buam!$E:$E,\">=16\")","v":0},null,0,0,0]
[4,"Sänger/Sängerinnen",{"$f":"COUNTIFS(Deandl!$M:$M,\"x\",Deandl!$E:$E,\"<=15\")","v":0},null,{"$f":"COUNTIFS(Buam!$M:$M,\"x\",Buam!$E:$E,\"<=15\")","v":0},null,{"$f":"COUNTIFS(Deandl!$M:$M,\"x\",Deandl!$E:$E,\"<=26\",Deandl!$E:$E,\">=16\")","v":0},null,{"$f":"COUNTIFS(Buam!$M:$M,\"x\",Buam!$E:$E,\"<=26\",Buam!$E:$E,\">=16\")","v":0},null,0,0,0]
[5,"Volksmusikanten/-innen",{"$f":"COUNTIFS(Deandl!$N:$N,\"x\",Deandl!$E:$E,\"<=15\")","v":0},null,{"$f":"COUNTIFS(Buam!$N:$N,\"x\",Buam!$E:$E,\"<=15\")","v":0},null,{"$f":"COUNTIFS(Deandl!$N:$N,\"x\",Deandl!$E:$E,\"<=26\",Deandl!$E:$E,\">=16\")","v":0},null,{"$f":"COUNTIFS(Buam!$N:$N,\"x\",Buam!$E:$E,\"<=26\",Buam!$E:$E,\">=16\")","v":0},null,0,0,0]
[6,"Brauchtum/Böllerschützen",{"$f":"COUNTIFS(Deandl!$O:$O,\"x\",Deandl!$E:$E,\"<=15\")","v":0},null,{"$f":"COUNTIFS(Buam!$O:$O,\"x\",Buam!$E:$E,\"<=15\")","v":0},null,{"$f":"COUNTIFS(Deandl!$O:$O,\"x\",Deandl!$E:$E,\"<=26\",Deandl!$E:$E,\">=16\")","v":0},null,{"$f":"COUNTIFS(Buam!$O:$O,\"x\",Buam!$E:$E,\"<=26\",Buam!$E:$E,\">=16\")","v":0},null,0,0,0]
[7,"Schnalzer",{"$f":"COUNTIFS(Deandl!$P:$P,\"x\",Deandl!$E:$E,\"<=15\")","v":0},null,{"$f":"COUNTIFS(Buam!$P:$P,\"x\",Buam!$E:$E,\"<=15\")","v":0},null,{"$f":"COUNTIFS(Deandl!$P:$P,\"x\",Deandl!$E:$E,\"<=26\",Deandl!$E:$E,\">=16\")","v":0},null,{"$f":"COUNTIFS(Buam!$P:$P,\"x\",Buam!$E:$E,\"<=26\",Buam!$E:$E,\">=16\")","v":0},null,0,0,0]
[8,"Vereinsmusiker/-innen",{"$f":"COUNTIFS(Deandl!$Q:$Q,\"x\",Deandl!$E:$E,\"<=15\")","v":0},null,{"$f":"COUNTIFS(Buam!$Q:$Q,\"x\",Buam!$E:$E,\"<=15\")","v":0},null,{"$f":"COUNTIFS(Deandl!$Q:$Q,\"x\",Deandl!$E:$E,\"<=26\",Deandl!$E:$E,\">=16\")","v":0},null,{"$f":"COUNTIFS(Buam!$Q:$Q,\"x\",Buam!$E:$E,\"<=26\",Buam!$E:$E,\">=16\")","v":0},null,0,0,0]
[9,"Theaterspieler/-innen",{"$f":"COUNTIFS(Deandl!$R:$R,\"x\",Deandl!$E:$E,\"<=15\")","v":0},null,{"$f":"COUNTIFS(Buam!$R:$R,\"x\",Buam!$E:$E,\"<=15\")","v":0},null,{"$f":"COUNTIFS(Deandl!$R:$R,\"x\",Deandl!$E:$E,\"<=26\",Deandl!$E:$E,\">=16\")","v":0},null,{"$f":"COUNTIFS(Buam!$R:$R,\"x\",Buam!$E:$E,\"<=26\",Buam!$E:$E,\">=16\")","v":0},null,0,0,0]
[10,"Musikkapelle",{"$f":"COUNTIFS(Deandl!$S:$S,\"x\",Deandl!$E:$E,\"<=15\")","v":0},null,{"$f":"COUNTIFS(Buam!$S:$S,\"x\",Buam!$E:$E,\"<=15\")","v":0},null,{"$f":"COUNTIFS(Deandl!$S:$S,\"x\",Deandl!$E:$E,\"<=26\",Deandl!$E:$E,\">=16\")","v":0},null,{"$f":"COUNTIFS(Buam!$S:$S,\"x\",Buam!$E:$E,\"<=26\",Buam!$E:$E,\">=16\")","v":0},null,0,0,0]
[11,"Handwerk und Basteln",{"$f":"COUNTIFS(Deandl!$T:$T,\"x\",Deandl!$E:$E,\"<=15\")","v":0},null,{"$f":"COUNTIFS(Buam!$T:$T,\"x\",Buam!$E:$E,\"<=15\")","v":0},null,{"$f":"COUNTIFS(Deandl!$T:$T,\"x\",Deandl!$E:$E,\"<=26\",Deandl!$E:$E,\">=16\")","v":0},null,{"$f":"COUNTIFS(Buam!$T:$T,\"x\",Buam!$E:$E,\"<=26\",Buam!$E:$E,\">=16\")","v":0},null,0,0,{"$f":"K23+L23","v":0}]
[12,"Sonstige",{"$f":"(COUNTIFS(Deandl!$W:$W,\"x\",Deandl!$E:$E,\"<=15\")+(COUNTIFS(Deandl!$Y:$Y,\"x\",Deandl!$E:$E,\"<=15\")+COUNTIFS(Deandl!$AA:$AA,\"x\",Deandl!$E:$E,\"<=15\")))","v":0},null,{"$f":"(COUNTIFS(Buam!$W:$W,\"x\",Buam!$E:$E,\"<=15\")+(COUNTIFS(Buam!$Y:$Y,\"x\",Buam!$E:$E,\"<=15\")+COUNTIFS(Buam!$AA:$AA,\"x\",Buam!$E:$E,\"<=15\")))","v":0},null,{"$f":"(COUNTIFS(Deandl!$W:$W,\"x\",Deandl!$E:$E,\"<=26\",Deandl!$E:$E,\">=16\")+(COUNTIFS(Deandl!$Y:$Y,\"x\",Deandl!$E:$E,\"<=26\",Deandl!$E:$E,\">=16\")+COUNTIFS(Deandl!$AA:$AA,\"x\",Deandl!$E:$E,\"<=26\",Deandl!$E:$E,\">=16\")))","v":0},null,{"$f":"(COUNTIFS(Buam!$W:$W,\"x\",Buam!$E:$E,\"<=26\",Buam!$E:$E,\">=16\")+(COUNTIFS(Buam!$Y:$Y,\"x\",Buam!$E:$E,\"<=26\",Buam!$E:$E,\">=16\")+COUNTIFS(Buam!$AA:$AA,\"x\",Buam!$E:$E,\"<=26\",Buam!$E:$E,\">=16\")))","v":0},null,0,0,0]
["Summe im Altersbereich",null,{"$f":"SUM(C13:D24)","v":0},null,{"$f":"SUM(E13:F24)","v":0},null,{"$f":"SUM(G13:H24)","v":0},null,{"$f":"SUM(I13:J24)","v":0},null,{"$f":"SUM(K13:K24)","v":0},{"$f":"SUM(L13:L24)","v":0}]
["Altersbereich gesamt",null,{"$f":"C25+E25","v":0},null,null,null,{"$f":"G25+I25","v":0},null,null,null,"Gruppenstärke Gesamt",null,{"$f":"SUM(M13:M25)","v":0}]
[]
[13,"(im Moment/vorübergehend) Passive Kinder und Jugendliche bis 26 Jahre",null,null,null,null,null,null,null,null,"Gesamt",null,{"$f":"COUNTIFS(Buam!$U:$U,\"x\",Buam!$E:$E,\"<=26\")+(COUNTIFS(Deandl!$U:$U,\"x\",Deandl!$E:$E,\"<=26\"))","v":0}]
[]
[13,"Gruppenstärke Gesamt ",null,null,null,null,null,null,null,null,"Gesamt",null,{"$f":"M26+M28","v":0}]
[]
[13,"Anzahl der Verantwortlichen / Mitarbeiter / Helfer in der Jugendarbeit",null,null,null,null,null,null,null,null,"Gesamt",null,0]
[]
[14,"davon mit abgeschlossener Jugendleiter-Grundschulung und (ab 2018) gültiger JULEICA",null,null,null,null,null,null,null,null,"Gesamt",null,{"$f":"COUNTIF(Jugendleiter!T2:T87,\"x\")","v":0}]
[]
[15,"maximal förderfähige qualifizierte Jugendleiter",null,null,null,null,null,null,null,null,"Gesamt",null,{"$f":"IF(M13>100,\"10\",ROUNDUP(M13/10,0))*1","v":0}]
[]
[16,"im Erhebungsjahr förderfähige Jugendleiter",null,null,null,null,null,null,null,null,"Gesamt",null,{"$f":"IF(M34<M36,M34,M36)","v":0}]

{"sheet":"Förderantrag","index":7,"n_rows":55,"n_cols":7,"rows_kept":55,"cut":false,"hidden":false,"merged":[[9,0,9,8],[8,5,8,8],[15,6,15,8],[15,2,15,5],[16,2,16,8],[17,2,17,8],[18,2,18,8],[54,0,56,8],[40,0,42,1],[24,2,26,5],[24,6,26,7],[52,4,52,7],[51,2,51,3],[51,4,51,7],[50,4,50,7],[46,3,46,8],[44,3,45,8],[42,3,42,8],[40,3,40,8],[29,0,34,8],[35,0,38,8],[1,6,1,7],[49,2,49,3],[49,4,49,7],[24,1,26,1],[24,0,26,0],[20,2,21,5],[20,1,21,1],[20,0,21,0],[18,0,18,1],[3,0,3,8],[17,0,17,1],[16,0,16,1],[15,0,15,1],[8,0,8,4],[5,0,6,8],[20,6,21,7]]}
[]
[null,null,null,null,null,"Bearbeitungsnr. des Verbands:"]
[]
["Bayerischer Trachtenverband e. V."]
[]
["Förderung der Jugendarbeit im Bayer. Trachtenverband e.V. aus Haushaltsmitteln zur Förderung des Trachtenwesens des Freistaats Bayern"]
[]
[]
["Förderungsantrag",null,null,null,null,{"$f":"Deckblatt!A4","v":2019}]
["(Vordruck Vereine)"]
[]
[]
[]
[]
[]
["Antragstellender Verein:",null,{"$f":"Deckblatt!A5","v":"(Vereinsname eintragen)"},null,null,null,{"$f":"Deckblatt!B5","v":"(Vereinsort eintragen)"}]
["Anschrift:"]
["Vertretungsberechtigter Vorsitzender:"]
["Übergeordneter Gau-/Trachtenverband:"]
[]
["1.","Pro-Kopf-Förderung","Anzahl gemeldete Jugendliche bis zum vollendeten 27. Lebensjahr:",null,null,null,{"$f":"Erhebungsbogen!M13","v":0}]
[]
[]
[]
["2.","Ausbildungs- und Qualifikations-förderung","Anzahl der Jugendleiter/Innen und Mitarbeiter/Innen in der Vereinsjugendarbeit, mit abgeschlossener Jugendleiter-Grundschulung und gültiger Jugendleiterkarte",null,null,null,{"$f":"Erhebungsbogen!M38","v":0}]
[]
[]
[]
[]
["Die Zuwendung wird ausschließlich zur Erfüllung des Zuwendungszwecks laut den Richtlinien zur Förderung der Jugendarbeit im Bayer. Trachtenverband e.V. verwendet. Alle in Richtlinien und Verfahrens- und Verwaltungsvorschriften enthaltenen Bestimmungen und genannten Bedingungen und Auflagen sind bekannt und werden eingehalten. Dem Unterzeichner ist bekannt, dass die Zuwendung im Falle ihrer zweckwidrigen Verwendung der Rückforderung und Verzinsung unterliegt."]
[]
[]
[]
[]
[]
["Der Bayerische Oberste Rechnungshof, das Bayerische Staatsministerium für Wissenschaft, Forschung und Kunst und der Bayerische Trachtenverband sind berechtigt, die Verwendung des Zuschusses an Ort und Stelle nachzuprüfen. Alle Unterlagen und Belege sind aus diesem Grund für mindestens 5 Jahre aufzubewahren!"]
[]
[]
[]
[]
["Die Überweisung des Zuschusses soll erfolgen auf:",null,"IBAN:"]
[]
[null,null,"BIC:"]
[]
[null,null,"Geldinstitut:"]
[]
[null,null,"Kontoinhaber:"]
[]
[]
["Datum:",{"$f":"TODAY()","v":"2019-10-07"},"Vorsitzender:"]
[null,null,null,null,"(Unterschrift/Stempel)"]
[null,null,"Jugendvertreter:"]
[null,null,null,null,"(Unterschrift/Stempel)"]
[]
["Dieser Antrag ist vollständig ausgefüllt und unterzeichnet durch den Vertretungsberechtigten Vorsitzenden und den Jugendvertreter des antragstellenden Mitgliedsvereins beim übergeordneten Gau-/Trachtenverband einzureichen."]

{"sheet":"Zusätzliche Auswertungen","index":8,"n_rows":14,"n_cols":9,"rows_kept":14,"cut":false,"hidden":false,"merged":[[0,0,0,8],[1,0,1,7]]}
["Kinder- und Jugenderfassung  - Zusätzliche Auswertungen"]
[]
["Buam",null,null,null,null,"Deandl"]
["Spalte",null,"Suchkriterium eintragen","Anzahl",null,"Spalte",null,"Suchkriterium eintragen","Anzahl"]
[1,"Suche nach",null,{"$f":"IF(A5=1,COUNTIFS(Buam!$B$2:$B$973,C5),IF(A5=2,COUNTIFS(Buam!$C$2:$C$973,C5),IF(A5=3,COUNTIFS(Buam!$E$2:$E$973,C5),IF(A5=4,COUNTIFS(Buam!$H$2:$H$973,C5),IF(A5=5,COUNTIFS(Buam!$V$2:$V$973,C5),IF(A5=6,COUNTIFS(Buam!$X$2:$X$973,C5),IF(A5=7,COUNTIFS(Buam!$B$2:$Z$973,Y5),IF(A5=8,COUNTIFS(Buam!$AB$2:$AB$973,C5),IF(A5=9,COUNTIFS(Buam!B$2:AC973,C5),IF(A5=10,COUNTIFS(Buam!$AD$2:$AD$973,C5),IF(A5=11,COUNTIFS(Buam!$AE$2:$AE$973,C5))))))))))))","v":0},null,1,"Suche nach",null,{"$f":"IF(F5=1,COUNTIFS(Deandl!$B$2:$B$972,H5),IF(F5=2,COUNTIFS(Deandl!$C$2:$C$972,H5),IF(F5=3,COUNTIFS(Deandl!$E$2:$E$972,H5),IF(F5=4,COUNTIFS(Deandl!$H$2:$H$972,H5),IF(F5=5,COUNTIFS(Deandl!$V$2:$V$972,H5),IF(F5=6,COUNTIFS(Deandl!$X$2:$X$972,H5),IF(F5=7,COUNTIFS(Deandl!$B$2:$Z$972,AD5),IF(F5=8,COUNTIFS(Deandl!$AB$2:$AB$972,H5),IF(F5=9,COUNTIFS(Deandl!G$2:AH972,H5),IF(F5=10,COUNTIFS(Deandl!$AD$2:$AD$972,H5),IF(F5=11,COUNTIFS(Deandl!$AE$2:$AE$972,H5))))))))))))","v":0}]
[1,"Suche nach",null,{"$f":"IF(A6=1,COUNTIFS(Buam!$B$2:$B$973,C6),IF(A6=2,COUNTIFS(Buam!$C$2:$C$973,C6),IF(A6=3,COUNTIFS(Buam!$E$2:$E$973,C6),IF(A6=4,COUNTIFS(Buam!$H$2:$H$973,C6),IF(A6=5,COUNTIFS(Buam!$V$2:$V$973,C6),IF(A6=6,COUNTIFS(Buam!$X$2:$X$973,C6),IF(A6=7,COUNTIFS(Buam!$B$2:$Z$973,Y6),IF(A6=8,COUNTIFS(Buam!$AB$2:$AB$973,C6),IF(A6=9,COUNTIFS(Buam!B$2:AC974,C6),IF(A6=10,COUNTIFS(Buam!$AD$2:$AD$973,C6),IF(A6=11,COUNTIFS(Buam!$AE$2:$AE$973,C6))))))))))))","v":0},null,1,"Suche nach",null,{"$f":"IF(F6=1,COUNTIFS(Deandl!$B$2:$B$973,H6),IF(F6=2,COUNTIFS(Deandl!$C$2:$C$973,H6),IF(F6=3,COUNTIFS(Deandl!$D$2:$D$973,H6),IF(F6=4,COUNTIFS(Deandl!$I$2:$I$973,H6),IF(F6=5,COUNTIFS(Deandl!$V$2:$V$973,H6),IF(F6=6,COUNTIFS(Deandl!$X$2:$X$973,H6),IF(F6=7,COUNTIFS(Deandl!$B$2:$Z$973,AD6),IF(F6=8,COUNTIFS(Deandl!$AB$2:$AB$973,H6),IF(F6=9,COUNTIFS(Deandl!G$2:AH974,H6),IF(F6=10,COUNTIFS(Deandl!$AD$2:$AD$973,H6),IF(F6=11,COUNTIFS(Deandl!$AE$2:$AE$973,H6))))))))))))","v":0}]
[1,"Suche nach",null,{"$f":"IF(A7=1,COUNTIFS(Buam!$B$2:$B$973,C7),IF(A7=2,COUNTIFS(Buam!$C$2:$C$973,C7),IF(A7=3,COUNTIFS(Buam!$E$2:$E$973,C7),IF(A7=4,COUNTIFS(Buam!$H$2:$H$973,C7),IF(A7=5,COUNTIFS(Buam!$V$2:$V$973,C7),IF(A7=6,COUNTIFS(Buam!$X$2:$X$973,C7),IF(A7=7,COUNTIFS(Buam!$B$2:$Z$973,Y7),IF(A7=8,COUNTIFS(Buam!$AB$2:$AB$973,C7),IF(A7=9,COUNTIFS(Buam!B$2:AC975,C7),IF(A7=10,COUNTIFS(Buam!$AD$2:$AD$973,C7),IF(A7=11,COUNTIFS(Buam!$AE$2:$AE$973,C7))))))))))))","v":0},null,1,"Suche nach",null,{"$f":"IF(F7=1,COUNTIFS(Deandl!$B$2:$B$973,H7),IF(F7=2,COUNTIFS(Deandl!$C$2:$C$973,H7),IF(F7=3,COUNTIFS(Deandl!$D$2:$D$973,H7),IF(F7=4,COUNTIFS(Deandl!$I$2:$I$973,H7),IF(F7=5,COUNTIFS(Deandl!$V$2:$V$973,H7),IF(F7=6,COUNTIFS(Deandl!$X$2:$X$973,H7),IF(F7=7,COUNTIFS(Deandl!$B$2:$Z$973,AD7),IF(F7=8,COUNTIFS(Deandl!$AB$2:$AB$973,H7),IF(F7=9,COUNTIFS(Deandl!G$2:AH975,H7),IF(F7=10,COUNTIFS(Deandl!$AD$2:$AD$973,H7),IF(F7=11,COUNTIFS(Deandl!$AE$2:$AE$973,H7))))))))))))","v":0}]
[1,"Suche nach",null,{"$f":"IF(A8=1,COUNTIFS(Buam!$B$2:$B$973,C8),IF(A8=2,COUNTIFS(Buam!$C$2:$C$973,C8),IF(A8=3,COUNTIFS(Buam!$E$2:$E$973,C8),IF(A8=4,COUNTIFS(Buam!$H$2:$H$973,C8),IF(A8=5,COUNTIFS(Buam!$V$2:$V$973,C8),IF(A8=6,COUNTIFS(Buam!$X$2:$X$973,C8),IF(A8=7,COUNTIFS(Buam!$B$2:$Z$973,Y8),IF(A8=8,COUNTIFS(Buam!$AB$2:$AB$973,C8),IF(A8=9,COUNTIFS(Buam!B$2:AC976,C8),IF(A8=10,COUNTIFS(Buam!$AD$2:$AD$973,C8),IF(A8=11,COUNTIFS(Buam!$AE$2:$AE$973,C8))))))))))))","v":0},null,1,"Suche nach",null,{"$f":"IF(F8=1,COUNTIFS(Buam!$B$2:$B$973,H8),IF(F8=2,COUNTIFS(Buam!$C$2:$C$973,H8),IF(F8=3,COUNTIFS(Buam!$D$2:$D$973,H8),IF(F8=4,COUNTIFS(Buam!$I$2:$I$973,H8),IF(F8=5,COUNTIFS(Buam!$V$2:$V$973,H8),IF(F8=6,COUNTIFS(Buam!$X$2:$X$973,H8),IF(F8=7,COUNTIFS(Buam!$B$2:$Z$973,AD8),IF(F8=8,COUNTIFS(Buam!$AB$2:$AB$973,H8),IF(F8=9,COUNTIFS(Buam!G$2:AH976,H8),IF(F8=10,COUNTIFS(Buam!$AD$2:$AD$973,H8),IF(F8=11,COUNTIFS(Buam!$AE$2:$AE$973,H8))))))))))))","v":0}]
[1,"Suche nach",null,{"$f":"IF(A9=1,COUNTIFS(Buam!$B$2:$B$973,C9),IF(A9=2,COUNTIFS(Buam!$C$2:$C$973,C9),IF(A9=3,COUNTIFS(Buam!$E$2:$E$973,C9),IF(A9=4,COUNTIFS(Buam!$H$2:$H$973,C9),IF(A9=5,COUNTIFS(Buam!$V$2:$V$973,C9),IF(A9=6,COUNTIFS(Buam!$X$2:$X$973,C9),IF(A9=7,COUNTIFS(Buam!$B$2:$Z$973,Y9),IF(A9=8,COUNTIFS(Buam!$AB$2:$AB$973,C9),IF(A9=9,COUNTIFS(Buam!B$2:AC977,C9),IF(A9=10,COUNTIFS(Buam!$AD$2:$AD$973,C9),IF(A9=11,COUNTIFS(Buam!$AE$2:$AE$973,C9))))))))))))","v":0},null,1,"Suche nach",null,{"$f":"IF(F9=1,COUNTIFS(Deandl!$B$2:$B$973,H9),IF(F9=2,COUNTIFS(Deandl!$C$2:$C$973,H9),IF(F9=3,COUNTIFS(Deandl!$D$2:$D$973,H9),IF(F9=4,COUNTIFS(Deandl!$I$2:$I$973,H9),IF(F9=5,COUNTIFS(Deandl!$V$2:$V$973,H9),IF(F9=6,COUNTIFS(Deandl!$X$2:$X$973,H9),IF(F9=7,COUNTIFS(Deandl!$B$2:$Z$973,AD9),IF(F9=8,COUNTIFS(Deandl!$AB$2:$AB$973,H9),IF(F9=9,COUNTIFS(Deandl!G$2:AH977,H9),IF(F9=10,COUNTIFS(Deandl!$AD$2:$AD$973,H9),IF(F9=11,COUNTIFS(Deandl!$AE$2:$AE$973,H9))))))))))))","v":0}]
[1,"Suche nach",null,{"$f":"IF(A10=1,COUNTIFS(Buam!$B$2:$B$973,C10),IF(A10=2,COUNTIFS(Buam!$C$2:$C$973,C10),IF(A10=3,COUNTIFS(Buam!$E$2:$E$973,C10),IF(A10=4,COUNTIFS(Buam!$H$2:$H$973,C10),IF(A10=5,COUNTIFS(Buam!$V$2:$V$973,C10),IF(A10=6,COUNTIFS(Buam!$X$2:$X$973,C10),IF(A10=7,COUNTIFS(Buam!$B$2:$Z$973,Y10),IF(A10=8,COUNTIFS(Buam!$AB$2:$AB$973,C10),IF(A10=9,COUNTIFS(Buam!B$2:AC978,C10),IF(A10=10,COUNTIFS(Buam!$AD$2:$AD$973,C10),IF(A10=11,COUNTIFS(Buam!$AE$2:$AE$973,C10))))))))))))","v":0},null,1,"Suche nach",null,{"$f":"IF(F10=1,COUNTIFS(Deandl!$B$2:$B$973,H10),IF(F10=2,COUNTIFS(Deandl!$C$2:$C$973,H10),IF(F10=3,COUNTIFS(Deandl!$D$2:$D$973,H10),IF(F10=4,COUNTIFS(Deandl!$I$2:$I$973,H10),IF(F10=5,COUNTIFS(Deandl!$V$2:$V$973,H10),IF(F10=6,COUNTIFS(Deandl!$X$2:$X$973,H10),IF(F10=7,COUNTIFS(Deandl!$B$2:$Z$973,AD10),IF(F10=8,COUNTIFS(Deandl!$AB$2:$AB$973,H10),IF(F10=9,COUNTIFS(Deandl!G$2:AH978,H10),IF(F10=10,COUNTIFS(Deandl!$AD$2:$AD$973,H10),IF(F10=11,COUNTIFS(Deandl!$AE$2:$AE$973,H10))))))))))))","v":0}]
[1,"Suche nach",null,{"$f":"IF(A11=1,COUNTIFS(Buam!$B$2:$B$973,C11),IF(A11=2,COUNTIFS(Buam!$C$2:$C$973,C11),IF(A11=3,COUNTIFS(Buam!$E$2:$E$973,C11),IF(A11=4,COUNTIFS(Buam!$H$2:$H$973,C11),IF(A11=5,COUNTIFS(Buam!$V$2:$V$973,C11),IF(A11=6,COUNTIFS(Buam!$X$2:$X$973,C11),IF(A11=7,COUNTIFS(Buam!$B$2:$Z$973,Y11),IF(A11=8,COUNTIFS(Buam!$AB$2:$AB$973,C11),IF(A11=9,COUNTIFS(Buam!B$2:AC979,C11),IF(A11=10,COUNTIFS(Buam!$AD$2:$AD$973,C11),IF(A11=11,COUNTIFS(Buam!$AE$2:$AE$973,C11))))))))))))","v":0},null,1,"Suche nach",null,{"$f":"IF(F11=1,COUNTIFS(Deandl!$B$2:$B$973,H11),IF(F11=2,COUNTIFS(Deandl!$C$2:$C$973,H11),IF(F11=3,COUNTIFS(Deandl!$D$2:$D$973,H11),IF(F11=4,COUNTIFS(Deandl!$I$2:$I$973,H11),IF(F11=5,COUNTIFS(Deandl!$V$2:$V$973,H11),IF(F11=6,COUNTIFS(Deandl!$X$2:$X$973,H11),IF(F11=7,COUNTIFS(Deandl!$B$2:$Z$973,AD11),IF(F11=8,COUNTIFS(Deandl!$AB$2:$AB$973,H11),IF(F11=9,COUNTIFS(Deandl!G$2:AH979,H11),IF(F11=10,COUNTIFS(Deandl!$AD$2:$AD$973,H11),IF(F11=11,COUNTIFS(Deandl!$AE$2:$AE$973,H11))))))))))))","v":0}]
[1,"Suche nach",null,{"$f":"IF(A12=1,COUNTIFS(Buam!$B$2:$B$973,C12),IF(A12=2,COUNTIFS(Buam!$C$2:$C$973,C12),IF(A12=3,COUNTIFS(Buam!$E$2:$E$973,C12),IF(A12=4,COUNTIFS(Buam!$H$2:$H$973,C12),IF(A12=5,COUNTIFS(Buam!$V$2:$V$973,C12),IF(A12=6,COUNTIFS(Buam!$X$2:$X$973,C12),IF(A12=7,COUNTIFS(Buam!$B$2:$Z$973,Y12),IF(A12=8,COUNTIFS(Buam!$AB$2:$AB$973,C12),IF(A12=9,COUNTIFS(Buam!B$2:AC980,C12),IF(A12=10,COUNTIFS(Buam!$AD$2:$AD$973,C12),IF(A12=11,COUNTIFS(Buam!$AE$2:$AE$973,C12))))))))))))","v":0},null,1,"Suche nach",null,{"$f":"IF(F12=1,COUNTIFS(Deandl!$B$2:$B$973,H12),IF(F12=2,COUNTIFS(Deandl!$C$2:$C$973,H12),IF(F12=3,COUNTIFS(Deandl!$D$2:$D$973,H12),IF(F12=4,COUNTIFS(Deandl!$I$2:$I$973,H12),IF(F12=5,COUNTIFS(Deandl!$V$2:$V$973,H12),IF(F12=6,COUNTIFS(Deandl!$X$2:$X$973,H12),IF(F12=7,COUNTIFS(Deandl!$B$2:$Z$973,AD12),IF(F12=8,COUNTIFS(Deandl!$AB$2:$AB$973,H12),IF(F12=9,COUNTIFS(Deandl!G$2:AH980,H12),IF(F12=10,COUNTIFS(Deandl!$AD$2:$AD$973,H12),IF(F12=11,COUNTIFS(Deandl!$AE$2:$AE$973,H12))))))))))))","v":0}]
[1,"Suche nach",null,{"$f":"IF(A13=1,COUNTIFS(Buam!$B$2:$B$973,C13),IF(A13=2,COUNTIFS(Buam!$C$2:$C$973,C13),IF(A13=3,COUNTIFS(Buam!$E$2:$E$973,C13),IF(A13=4,COUNTIFS(Buam!$H$2:$H$973,C13),IF(A13=5,COUNTIFS(Buam!$V$2:$V$973,C13),IF(A13=6,COUNTIFS(Buam!$X$2:$X$973,C13),IF(A13=7,COUNTIFS(Buam!$B$2:$Z$973,Y13),IF(A13=8,COUNTIFS(Buam!$AB$2:$AB$973,C13),IF(A13=9,COUNTIFS(Buam!B$2:AC981,C13),IF(A13=10,COUNTIFS(Buam!$AD$2:$AD$973,C13),IF(A13=11,COUNTIFS(Buam!$AE$2:$AE$973,C13))))))))))))","v":0},null,1,"Suche nach",null,{"$f":"IF(F13=1,COUNTIFS(Deandl!$B$2:$B$973,H13),IF(F13=2,COUNTIFS(Deandl!$C$2:$C$973,H13),IF(F13=3,COUNTIFS(Deandl!$D$2:$D$973,H13),IF(F13=4,COUNTIFS(Deandl!$I$2:$I$973,H13),IF(F13=5,COUNTIFS(Deandl!$V$2:$V$973,H13),IF(F13=6,COUNTIFS(Deandl!$X$2:$X$973,H13),IF(F13=7,COUNTIFS(Deandl!$B$2:$Z$973,AD13),IF(F13=8,COUNTIFS(Deandl!$AB$2:$AB$973,H13),IF(F13=9,COUNTIFS(Deandl!G$2:AH981,H13),IF(F13=10,COUNTIFS(Deandl!$AD$2:$AD$973,H13),IF(F13=11,COUNTIFS(Deandl!$AE$2:$AE$973,H13))))))))))))","v":0}]
[1,"Suche nach",null,{"$f":"IF(A14=1,COUNTIFS(Buam!$B$2:$B$973,C14),IF(A14=2,COUNTIFS(Buam!$C$2:$C$973,C14),IF(A14=3,COUNTIFS(Buam!$E$2:$E$973,C14),IF(A14=4,COUNTIFS(Buam!$H$2:$H$973,C14),IF(A14=5,COUNTIFS(Buam!$V$2:$V$973,C14),IF(A14=6,COUNTIFS(Buam!$X$2:$X$973,C14),IF(A14=7,COUNTIFS(Buam!$B$2:$Z$973,Y14),IF(A14=8,COUNTIFS(Buam!$AB$2:$AB$973,C14),IF(A14=9,COUNTIFS(Buam!B$2:AC982,C14),IF(A14=10,COUNTIFS(Buam!$AD$2:$AD$973,C14),IF(A14=11,COUNTIFS(Buam!$AE$2:$AE$973,C14))))))))))))","v":0},null,1,"Suche nach",null,{"$f":"IF(F14=1,COUNTIFS(Deandl!$B$2:$B$973,H14),IF(F14=2,COUNTIFS(Deandl!$C$2:$C$973,H14),IF(F14=3,COUNTIFS(Deandl!$D$2:$D$973,H14),IF(F14=4,COUNTIFS(Deandl!$I$2:$I$973,H14),IF(F14=5,COUNTIFS(Deandl!$V$2:$V$973,H14),IF(F14=6,COUNTIFS(Deandl!$X$2:$X$973,H14),IF(F14=7,COUNTIFS(Deandl!$B$2:$Z$973,AD14),IF(F14=8,COUNTIFS(Deandl!$AB$2:$AB$973,H14),IF(F14=9,COUNTIFS(Deandl!G$2:AH982,H14),IF(F14=10,COUNTIFS(Deandl!$AD$2:$AD$973,H14),IF(F14=11,COUNTIFS(Deandl!$AE$2:$AE$973,H14))))))))))))","v":0}]